Workbook

Sheet カロリー償却
B1: カロリー償却スケジュール
B2: =IFERROR(CONCATENATE("わずか ",DATEDIF(StartDate,TargetDate,"m")," か月と ", DATEDIF(StartDate,TargetDate,"md"),DayNo),"") -> わずか 10 か月と 5 日 | H2: =IF(WeightGoal="減量","自分が毎日必要とするカロリーから 1000 カロリー以上減らすことや、一日の消費カロリーを " & IF(Gender="女性","1200 カロリー以下に抑えることは推奨されません。","1800 カロリー以下に抑えることは推奨されません。"),"") -> 自分が毎日必要とするカロリーから 1000 カロリー以上減らすことや、一日の消費カロリーを 1800 カロリー以下に抑えることは推奨されません。
B3: =IF(WeightGoal="維持","","目標に到達するまで!") -> 目標に到達するまで! | H3: =IF(WeightGoal="維持","",CONCATENATE("目標日は、週あたり ",IF(UnitOfMeasure="インペリアル","1 ポンド",".45 kg "),"という推奨平均",IF(WeightGoal="減量","減量値","増量値"),"に基づいています。")) -> 目標日は、週あたり .45 kg という推奨平均減量値に基づいています。
B4: 活動レベル | H4: 測定単位 | J4: 現在の体重 | L4: 年齢
B5: 非常に活動的 | D5: =VLOOKUP(Level,ExerciseTypes[],2,FALSE) -> 週 6 から 7 日運動 + 肉体労働/ 2 倍のトレーニング | H5: メートル | J5: 95.0 | L5: 36
B6: スケジュールの目的 | H6: =IF(Standard,"高さ (フィート)","高さ (メートル)") -> 高さ (メートル) | I6: =IF(Standard,"インチ","センチメートル") -> センチメートル | J6: 目標体重 | L6: 性別
B7: 減量 | H7: 2 | I7: 183.0 | J7: 75.0 | L7: 男性
B9: 目標の開始日 | E9: 目標の達成日 | H9: 最初の 1 日の必要カロリー | J9: 最初の 1 日のカロリー摂取量 | L9: =IF(WeightGoal="増量","必要とされる余分なカロリー","消費するカロリー") -> 消費するカロリー
B10: =TODAY()-5 -> 2019-03-08 | E10: =IF(WeightGoal="維持","",IF(AND(AllComplete,B14<>""),MAX(B13:B1000),"目標日を開始日より前の日付にすることはできません。入力内容を確認してください。")) -> 2020-01-13 | H10: =IF(AllComplete,BMR*ActivityFactor,"") -> 3889 | J10: =IF(AllComplete,BMR*ActivityFactor+IF(WeightGoal="維持",0,IF(WeightGoal="減量",-500,IF(WeightGoal="増量",500))),"") -> 3389 | L10: =IF(WeightGoal="維持","",(WeightToLoseGain)*IF(Standard,1,2.2)*3500) -> 154000
B12: 日付 | C12: 週目 | D12: 日目 | E12: 体重 | F12: BMR | G12: 消費カロリー | H12: 燃焼カロリー | I12: =IF(WeightGoal="増量", "余分なカロリー","カロリー不足") -> カロリー不足 | J12: 残りのカロリー | K12: =IF(UnitOfMeasure="インペリアル","残りのポンド","残りの kg") -> 残りの kg | L12: =IF(WeightGoal="増量","増量","減量") -> 減量 | M12: 目標の %
B13: =IFERROR(IF(Maintain,"",StartDate), "") -> 2019-03-08 | C13: =IFERROR(IF(Maintain,"",1), "") -> 1 | D13: =IFERROR(IF(AND(ISNUMBER(J13),J13>0),1,""), "") -> 1 | E13: =IFERROR(_xlfn.SINGLE(IF(_xlfn.SINGLE(Maintain),"",Weight)), "") -> 95.0 | F13: =IFERROR(IF(Maintain,"",IF(E13>0,RunningBMR,"")), "") -> 2047 | G13: =IFERROR(IF(Maintain,"",InitCalIntake), "") -> 3389 | H13: =IFERROR(F13*(ActivityFactor),"") -> 3889 | I13: =IFERROR(IF(WeightGoal="増量",G13-H13,H13-G13),"") -> 500 | J13: =IFERROR(L10, "") -> 154000 | K13: =IFERROR(IF(Standard,J13/CalsPerPound,J13/CalsPerPound/2.2),"") -> 20.0 | L13: =IFERROR(WeightToLoseGain-K13,"") -> 0.00 | M13: =IFERROR(IF(Maintain,"",0%), "") -> 0%
B14: =IFERROR(IF(K13>0,B13+1,""),"") -> 2019-03-09 | C14: =IFERROR(IF(D14<>"",IF(MOD(D14,7)=1,(D13/7)+1,""),""),"") ->  | D14: =IFERROR(IF(K13>0,D13+1,""),"") -> 2 | E14: =IFERROR(IF($D14<>"",E13-(I13/CalsPerPound),""),"") -> 94.9 | F14: =IFERROR(RunningBMR,"") -> 2045 | G14: =IFERROR(IF(K13>0,F13*ActivityFactor+IF(WeightGoal="維持",0,IF(WeightGoal="減量",-500,IF(WeightGoal="増量",500))),""),"") -> 3389 | H14: =IFERROR(F14*(ActivityFactor),"") -> 3885 | I14: =IFERROR(IF(WeightGoal="増量",G14-H14,H14-G14),"") -> 496 | J14: =IFERROR(J13-I14,"") -> 153504 | K14: =IFERROR(IF(Standard,J14/CalsPerPound,J14/CalsPerPound/2.2),"") -> 19.9 | L14: =IFERROR(WeightToLoseGain-K14,"") -> 0.06 | M14: =IFERROR(IF(B13<>"",L14/(WeightToLoseGain),""),"") -> 0%
B15: 2019-03-10 | C15: =IFERROR(IF(D15<>"",IF(MOD(D15,7)=1,(D14/7)+1,""),""),"") ->  | D15: 3 | E15: 94.7 | F15: =IFERROR(RunningBMR,"") -> 2043 | G15: =IFERROR(IF(K14>0,F14*ActivityFactor+IF(WeightGoal="維持",0,IF(WeightGoal="減量",-500,IF(WeightGoal="増量",500))),""),"") -> 3385 | H15: =IFERROR(F15*(ActivityFactor),"") -> 3882 | I15: =IFERROR(IF(WeightGoal="増量",G15-H15,H15-G15),"") -> 496 | J15: =IFERROR(J14-I15,"") -> 153007 | K15: =IFERROR(IF(Standard,J15/CalsPerPound,J15/CalsPerPound/2.2),"") -> 19.9 | L15: =IFERROR(WeightToLoseGain-K15,"") -> 0.13 | M15: =IFERROR(IF(B14<>"",L15/(WeightToLoseGain),""),"") -> 1%
B16: 2019-03-11 | D16: 4 | E16: 94.6 | F16: =IFERROR(RunningBMR,"") -> 2041 | G16: =IFERROR(IF(K15>0,F15*ActivityFactor+IF(WeightGoal="維持",0,IF(WeightGoal="減量",-500,IF(WeightGoal="増量",500))),""),"") -> 3382 | H16: =IFERROR(F16*(ActivityFactor),"") -> 3878 | I16: =IFERROR(IF(WeightGoal="増量",G16-H16,H16-G16),"") -> 496 | J16: 152511 | K16: =IFERROR(IF(Standard,J16/CalsPerPound,J16/CalsPerPound/2.2),"") -> 19.8 | L16: =IFERROR(WeightToLoseGain-K16,"") -> 0.19 | M16: =IFERROR(IF(B15<>"",L16/(WeightToLoseGain),""),"") -> 1%
B17: 2019-03-12 | D17: 5 | E17: 94.4 | F17: =IFERROR(RunningBMR,"") -> 2039 | G17: =IFERROR(IF(K16>0,F16*ActivityFactor+IF(WeightGoal="維持",0,IF(WeightGoal="減量",-500,IF(WeightGoal="増量",500))),""),"") -> 3378 | H17: =IFERROR(F17*(ActivityFactor),"") -> 3874 | I17: =IFERROR(IF(WeightGoal="増量",G17-H17,H17-G17),"") -> 496 | J17: 152015 | K17: =IFERROR(IF(Standard,J17/CalsPerPound,J17/CalsPerPound/2.2),"") -> 19.7 | L17: =IFERROR(WeightToLoseGain-K17,"") -> 0.26 | M17: =IFERROR(IF(B16<>"",L17/(WeightToLoseGain),""),"") -> 1%
B18: 2019-03-13 | D18: 6 | E18: 94.3 | F18: =IFERROR(RunningBMR,"") -> 2037 | G18: =IFERROR(IF(K17>0,F17*ActivityFactor+IF(WeightGoal="維持",0,IF(WeightGoal="減量",-500,IF(WeightGoal="増量",500))),""),"") -> 3374 | H18: =IFERROR(F18*(ActivityFactor),"") -> 3871 | I18: =IFERROR(IF(WeightGoal="増量",G18-H18,H18-G18),"") -> 496 | J18: 151518 | K18: =IFERROR(IF(Standard,J18/CalsPerPound,J18/CalsPerPound/2.2),"") -> 19.7 | L18: =IFERROR(WeightToLoseGain-K18,"") -> 0.32 | M18: =IFERROR(IF(B17<>"",L18/(WeightToLoseGain),""),"") -> 2%
B19: 2019-03-14 | D19: 7 | E19: 94.1 | F19: =IFERROR(RunningBMR,"") -> 2035 | G19: =IFERROR(IF(K18>0,F18*ActivityFactor+IF(WeightGoal="維持",0,IF(WeightGoal="減量",-500,IF(WeightGoal="増量",500))),""),"") -> 3371 | H19: =IFERROR(F19*(ActivityFactor),"") -> 3867 | I19: =IFERROR(IF(WeightGoal="増量",G19-H19,H19-G19),"") -> 496 | J19: 151022 | K19: =IFERROR(IF(Standard,J19/CalsPerPound,J19/CalsPerPound/2.2),"") -> 19.6 | L19: =IFERROR(WeightToLoseGain-K19,"") -> 0.39 | M19: =IFERROR(IF(B18<>"",L19/(WeightToLoseGain),""),"") -> 2%
B20: 2019-03-15 | C20: 2 | D20: 8 | E20: 94.0 | F20: =IFERROR(RunningBMR,"") -> 2033 | G20: =IFERROR(IF(K19>0,F19*ActivityFactor+IF(WeightGoal="維持",0,IF(WeightGoal="減量",-500,IF(WeightGoal="増量",500))),""),"") -> 3367 | H20: =IFERROR(F20*(ActivityFactor),"") -> 3863 | I20: =IFERROR(IF(WeightGoal="増量",G20-H20,H20-G20),"") -> 496 | J20: 150526 | K20: =IFERROR(IF(Standard,J20/CalsPerPound,J20/CalsPerPound/2.2),"") -> 19.5 | L20: =IFERROR(WeightToLoseGain-K20,"") -> 0.45 | M20: =IFERROR(IF(B19<>"",L20/(WeightToLoseGain),""),"") -> 2%
B21: 2019-03-16 | D21: 9 | E21: 93.9 | F21: =IFERROR(RunningBMR,"") -> 2031 | G21: =IFERROR(IF(K20>0,F20*ActivityFactor+IF(WeightGoal="維持",0,IF(WeightGoal="減量",-500,IF(WeightGoal="増量",500))),""),"") -> 3363 | H21: =IFERROR(F21*(ActivityFactor),"") -> 3859 | I21: =IFERROR(IF(WeightGoal="増量",G21-H21,H21-G21),"") -> 496 | J21: 150030 | K21: =IFERROR(IF(Standard,J21/CalsPerPound,J21/CalsPerPound/2.2),"") -> 19.5 | L21: =IFERROR(WeightToLoseGain-K21,"") -> 0.52 | M21: =IFERROR(IF(B20<>"",L21/(WeightToLoseGain),""),"") -> 3%
B22: 2019-03-17 | D22: 10 | E22: 93.7 | F22: =IFERROR(RunningBMR,"") -> 2029 | G22: =IFERROR(IF(K21>0,F21*ActivityFactor+IF(WeightGoal="維持",0,IF(WeightGoal="減量",-500,IF(WeightGoal="増量",500))),""),"") -> 3359 | H22: =IFERROR(F22*(ActivityFactor),"") -> 3856 | I22: =IFERROR(IF(WeightGoal="増量",G22-H22,H22-G22),"") -> 496 | J22: 149533 | K22: =IFERROR(IF(Standard,J22/CalsPerPound,J22/CalsPerPound/2.2),"") -> 19.4 | L22: =IFERROR(WeightToLoseGain-K22,"") -> 0.58 | M22: =IFERROR(IF(B21<>"",L22/(WeightToLoseGain),""),"") -> 3%
B23: 2019-03-18 | D23: 11 | E23: 93.6 | F23: =IFERROR(RunningBMR,"") -> 2027 | G23: =IFERROR(IF(K22>0,F22*ActivityFactor+IF(WeightGoal="維持",0,IF(WeightGoal="減量",-500,IF(WeightGoal="増量",500))),""),"") -> 3356 | H23: =IFERROR(F23*(ActivityFactor),"") -> 3852 | I23: =IFERROR(IF(WeightGoal="増量",G23-H23,H23-G23),"") -> 496 | J23: 149037 | K23: =IFERROR(IF(Standard,J23/CalsPerPound,J23/CalsPerPound/2.2),"") -> 19.4 | L23: =IFERROR(WeightToLoseGain-K23,"") -> 0.64 | M23: =IFERROR(IF(B22<>"",L23/(WeightToLoseGain),""),"") -> 3%
B24: 2019-03-19 | D24: 12 | E24: 93.4 | F24: =IFERROR(RunningBMR,"") -> 2025 | G24: =IFERROR(IF(K23>0,F23*ActivityFactor+IF(WeightGoal="維持",0,IF(WeightGoal="減量",-500,IF(WeightGoal="増量",500))),""),"") -> 3352 | H24: =IFERROR(F24*(ActivityFactor),"") -> 3848 | I24: =IFERROR(IF(WeightGoal="増量",G24-H24,H24-G24),"") -> 496 | J24: 148541 | K24: =IFERROR(IF(Standard,J24/CalsPerPound,J24/CalsPerPound/2.2),"") -> 19.3 | L24: =IFERROR(WeightToLoseGain-K24,"") -> 0.71 | M24: =IFERROR(IF(B23<>"",L24/(WeightToLoseGain),""),"") -> 4%
B25: 2019-03-20 | D25: 13 | E25: 93.3 | F25: =IFERROR(RunningBMR,"") -> 2024 | G25: =IFERROR(IF(K24>0,F24*ActivityFactor+IF(WeightGoal="維持",0,IF(WeightGoal="減量",-500,IF(WeightGoal="増量",500))),""),"") -> 3348 | H25: =IFERROR(F25*(ActivityFactor),"") -> 3845 | I25: =IFERROR(IF(WeightGoal="増量",G25-H25,H25-G25),"") -> 496 | J25: 148044 | K25: =IFERROR(IF(Standard,J25/CalsPerPound,J25/CalsPerPound/2.2),"") -> 19.2 | L25: =IFERROR(WeightToLoseGain-K25,"") -> 0.77 | M25: =IFERROR(IF(B24<>"",L25/(WeightToLoseGain),""),"") -> 4%
B26: 2019-03-21 | D26: 14 | E26: 93.2 | F26: =IFERROR(RunningBMR,"") -> 2022 | G26: =IFERROR(IF(K25>0,F25*ActivityFactor+IF(WeightGoal="維持",0,IF(WeightGoal="減量",-500,IF(WeightGoal="増量",500))),""),"") -> 3345 | H26: =IFERROR(F26*(ActivityFactor),"") -> 3841 | I26: =IFERROR(IF(WeightGoal="増量",G26-H26,H26-G26),"") -> 496 | J26: 147548 | K26: =IFERROR(IF(Standard,J26/CalsPerPound,J26/CalsPerPound/2.2),"") -> 19.2 | L26: =IFERROR(WeightToLoseGain-K26,"") -> 0.84 | M26: =IFERROR(IF(B25<>"",L26/(WeightToLoseGain),""),"") -> 4%
B27: 2019-03-22 | C27: 3 | D27: 15 | E27: 93.0 | F27: =IFERROR(RunningBMR,"") -> 2020 | G27: =IFERROR(IF(K26>0,F26*ActivityFactor+IF(WeightGoal="維持",0,IF(WeightGoal="減量",-500,IF(WeightGoal="増量",500))),""),"") -> 3341 | H27: =IFERROR(F27*(ActivityFactor),"") -> 3837 | I27: =IFERROR(IF(WeightGoal="増量",G27-H27,H27-G27),"") -> 496 | J27: 147052 | K27: =IFERROR(IF(Standard,J27/CalsPerPound,J27/CalsPerPound/2.2),"") -> 19.1 | L27: =IFERROR(WeightToLoseGain-K27,"") -> 0.90 | M27: =IFERROR(IF(B26<>"",L27/(WeightToLoseGain),""),"") -> 5%
B28: 2019-03-23 | D28: 16 | E28: 92.9 | F28: =IFERROR(RunningBMR,"") -> 2018 | G28: =IFERROR(IF(K27>0,F27*ActivityFactor+IF(WeightGoal="維持",0,IF(WeightGoal="減量",-500,IF(WeightGoal="増量",500))),""),"") -> 3337 | H28: =IFERROR(F28*(ActivityFactor),"") -> 3834 | I28: =IFERROR(IF(WeightGoal="増量",G28-H28,H28-G28),"") -> 496 | J28: 146555 | K28: =IFERROR(IF(Standard,J28/CalsPerPound,J28/CalsPerPound/2.2),"") -> 19.0 | L28: =IFERROR(WeightToLoseGain-K28,"") -> 0.97 | M28: =IFERROR(IF(B27<>"",L28/(WeightToLoseGain),""),"") -> 5%
B29: 2019-03-24 | D29: 17 | E29: 92.7 | F29: =IFERROR(RunningBMR,"") -> 2016 | G29: =IFERROR(IF(K28>0,F28*ActivityFactor+IF(WeightGoal="維持",0,IF(WeightGoal="減量",-500,IF(WeightGoal="増量",500))),""),"") -> 3334 | H29: =IFERROR(F29*(ActivityFactor),"") -> 3830 | I29: =IFERROR(IF(WeightGoal="増量",G29-H29,H29-G29),"") -> 496 | J29: 146059 | K29: =IFERROR(IF(Standard,J29/CalsPerPound,J29/CalsPerPound/2.2),"") -> 19.0 | L29: =IFERROR(WeightToLoseGain-K29,"") -> 1.03 | M29: =IFERROR(IF(B28<>"",L29/(WeightToLoseGain),""),"") -> 5%
B30: 2019-03-25 | D30: 18 | E30: 92.6 | F30: =IFERROR(RunningBMR,"") -> 2014 | G30: =IFERROR(IF(K29>0,F29*ActivityFactor+IF(WeightGoal="維持",0,IF(WeightGoal="減量",-500,IF(WeightGoal="増量",500))),""),"") -> 3330 | H30: =IFERROR(F30*(ActivityFactor),"") -> 3826 | I30: =IFERROR(IF(WeightGoal="増量",G30-H30,H30-G30),"") -> 496 | J30: 145563 | K30: =IFERROR(IF(Standard,J30/CalsPerPound,J30/CalsPerPound/2.2),"") -> 18.9 | L30: =IFERROR(WeightToLoseGain-K30,"") -> 1.10 | M30: =IFERROR(IF(B29<>"",L30/(WeightToLoseGain),""),"") -> 5%
B31: 2019-03-26 | D31: 19 | E31: 92.4 | F31: =IFERROR(RunningBMR,"") -> 2012 | G31: =IFERROR(IF(K30>0,F30*ActivityFactor+IF(WeightGoal="維持",0,IF(WeightGoal="減量",-500,IF(WeightGoal="増量",500))),""),"") -> 3326 | H31: =IFERROR(F31*(ActivityFactor),"") -> 3823 | I31: =IFERROR(IF(WeightGoal="増量",G31-H31,H31-G31),"") -> 496 | J31: 145066 | K31: =IFERROR(IF(Standard,J31/CalsPerPound,J31/CalsPerPound/2.2),"") -> 18.8 | L31: =IFERROR(WeightToLoseGain-K31,"") -> 1.16 | M31: =IFERROR(IF(B30<>"",L31/(WeightToLoseGain),""),"") -> 6%
B32: 2019-03-27 | D32: 20 | E32: 92.3 | F32: =IFERROR(RunningBMR,"") -> 2010 | G32: =IFERROR(IF(K31>0,F31*ActivityFactor+IF(WeightGoal="維持",0,IF(WeightGoal="減量",-500,IF(WeightGoal="増量",500))),""),"") -> 3323 | H32: =IFERROR(F32*(ActivityFactor),"") -> 3819 | I32: =IFERROR(IF(WeightGoal="増量",G32-H32,H32-G32),"") -> 496 | J32: 144570 | K32: =IFERROR(IF(Standard,J32/CalsPerPound,J32/CalsPerPound/2.2),"") -> 18.8 | L32: =IFERROR(WeightToLoseGain-K32,"") -> 1.22 | M32: =IFERROR(IF(B31<>"",L32/(WeightToLoseGain),""),"") -> 6%
B33: 2019-03-28 | D33: 21 | E33: 92.2 | F33: =IFERROR(RunningBMR,"") -> 2008 | G33: =IFERROR(IF(K32>0,F32*ActivityFactor+IF(WeightGoal="維持",0,IF(WeightGoal="減量",-500,IF(WeightGoal="増量",500))),""),"") -> 3319 | H33: =IFERROR(F33*(ActivityFactor),"") -> 3815 | I33: =IFERROR(IF(WeightGoal="増量",G33-H33,H33-G33),"") -> 496 | J33: 144074 | K33: =IFERROR(IF(Standard,J33/CalsPerPound,J33/CalsPerPound/2.2),"") -> 18.7 | L33: =IFERROR(WeightToLoseGain-K33,"") -> 1.29 | M33: =IFERROR(IF(B32<>"",L33/(WeightToLoseGain),""),"") -> 6%
B34: 2019-03-29 | C34: 4 | D34: 22 | E34: 92.0 | F34: =IFERROR(RunningBMR,"") -> 2006 | G34: =IFERROR(IF(K33>0,F33*ActivityFactor+IF(WeightGoal="維持",0,IF(WeightGoal="減量",-500,IF(WeightGoal="増量",500))),""),"") -> 3315 | H34: =IFERROR(F34*(ActivityFactor),"") -> 3811 | I34: =IFERROR(IF(WeightGoal="増量",G34-H34,H34-G34),"") -> 496 | J34: 143578 | K34: =IFERROR(IF(Standard,J34/CalsPerPound,J34/CalsPerPound/2.2),"") -> 18.6 | L34: =IFERROR(WeightToLoseGain-K34,"") -> 1.35 | M34: =IFERROR(IF(B33<>"",L34/(WeightToLoseGain),""),"") -> 7%
B35: 2019-03-30 | D35: 23 | E35: 91.9 | F35: =IFERROR(RunningBMR,"") -> 2004 | G35: =IFERROR(IF(K34>0,F34*ActivityFactor+IF(WeightGoal="維持",0,IF(WeightGoal="減量",-500,IF(WeightGoal="増量",500))),""),"") -> 3311 | H35: =IFERROR(F35*(ActivityFactor),"") -> 3808 | I35: =IFERROR(IF(WeightGoal="増量",G35-H35,H35-G35),"") -> 496 | J35: 143081 | K35: =IFERROR(IF(Standard,J35/CalsPerPound,J35/CalsPerPound/2.2),"") -> 18.6 | L35: =IFERROR(WeightToLoseGain-K35,"") -> 1.42 | M35: =IFERROR(IF(B34<>"",L35/(WeightToLoseGain),""),"") -> 7%
B36: 2019-03-31 | D36: 24 | E36: 91.7 | F36: =IFERROR(RunningBMR,"") -> 2002 | G36: =IFERROR(IF(K35>0,F35*ActivityFactor+IF(WeightGoal="維持",0,IF(WeightGoal="減量",-500,IF(WeightGoal="増量",500))),""),"") -> 3308 | H36: =IFERROR(F36*(ActivityFactor),"") -> 3804 | I36: =IFERROR(IF(WeightGoal="増量",G36-H36,H36-G36),"") -> 496 | J36: 142585 | K36: =IFERROR(IF(Standard,J36/CalsPerPound,J36/CalsPerPound/2.2),"") -> 18.5 | L36: =IFERROR(WeightToLoseGain-K36,"") -> 1.48 | M36: =IFERROR(IF(B35<>"",L36/(WeightToLoseGain),""),"") -> 7%
B37: 2019-04-01 | D37: 25 | E37: 91.6 | F37: =IFERROR(RunningBMR,"") -> 2000 | G37: =IFERROR(IF(K36>0,F36*ActivityFactor+IF(WeightGoal="維持",0,IF(WeightGoal="減量",-500,IF(WeightGoal="増量",500))),""),"") -> 3304 | H37: =IFERROR(F37*(ActivityFactor),"") -> 3800 | I37: =IFERROR(IF(WeightGoal="増量",G37-H37,H37-G37),"") -> 496 | J37: 142089 | K37: =IFERROR(IF(Standard,J37/CalsPerPound,J37/CalsPerPound/2.2),"") -> 18.5 | L37: =IFERROR(WeightToLoseGain-K37,"") -> 1.55 | M37: =IFERROR(IF(B36<>"",L37/(WeightToLoseGain),""),"") -> 8%
B38: 2019-04-02 | D38: 26 | E38: 91.5 | F38: =IFERROR(RunningBMR,"") -> 1998 | G38: =IFERROR(IF(K37>0,F37*ActivityFactor+IF(WeightGoal="維持",0,IF(WeightGoal="減量",-500,IF(WeightGoal="増量",500))),""),"") -> 3300 | H38: =IFERROR(F38*(ActivityFactor),"") -> 3797 | I38: =IFERROR(IF(WeightGoal="増量",G38-H38,H38-G38),"") -> 496 | J38: 141592 | K38: =IFERROR(IF(Standard,J38/CalsPerPound,J38/CalsPerPound/2.2),"") -> 18.4 | L38: =IFERROR(WeightToLoseGain-K38,"") -> 1.61 | M38: =IFERROR(IF(B37<>"",L38/(WeightToLoseGain),""),"") -> 8%
B39: 2019-04-03 | D39: 27 | E39: 91.3 | F39: =IFERROR(RunningBMR,"") -> 1996 | G39: =IFERROR(IF(K38>0,F38*ActivityFactor+IF(WeightGoal="維持",0,IF(WeightGoal="減量",-500,IF(WeightGoal="増量",500))),""),"") -> 3297 | H39: =IFERROR(F39*(ActivityFactor),"") -> 3793 | I39: =IFERROR(IF(WeightGoal="増量",G39-H39,H39-G39),"") -> 496 | J39: 141096 | K39: =IFERROR(IF(Standard,J39/CalsPerPound,J39/CalsPerPound/2.2),"") -> 18.3 | L39: =IFERROR(WeightToLoseGain-K39,"") -> 1.68 | M39: =IFERROR(IF(B38<>"",L39/(WeightToLoseGain),""),"") -> 8%
B40: 2019-04-04 | D40: 28 | E40: 91.2 | F40: =IFERROR(RunningBMR,"") -> 1994 | G40: =IFERROR(IF(K39>0,F39*ActivityFactor+IF(WeightGoal="維持",0,IF(WeightGoal="減量",-500,IF(WeightGoal="増量",500))),""),"") -> 3293 | H40: =IFERROR(F40*(ActivityFactor),"") -> 3789 | I40: =IFERROR(IF(WeightGoal="増量",G40-H40,H40-G40),"") -> 496 | J40: 140600 | K40: =IFERROR(IF(Standard,J40/CalsPerPound,J40/CalsPerPound/2.2),"") -> 18.3 | L40: =IFERROR(WeightToLoseGain-K40,"") -> 1.74 | M40: =IFERROR(IF(B39<>"",L40/(WeightToLoseGain),""),"") -> 9%
B41: 2019-04-05 | C41: 5 | D41: 29 | E41: 91.0 | F41: =IFERROR(RunningBMR,"") -> 1992 | G41: =IFERROR(IF(K40>0,F40*ActivityFactor+IF(WeightGoal="維持",0,IF(WeightGoal="減量",-500,IF(WeightGoal="増量",500))),""),"") -> 3289 | H41: =IFERROR(F41*(ActivityFactor),"") -> 3786 | I41: =IFERROR(IF(WeightGoal="増量",G41-H41,H41-G41),"") -> 496 | J41: 140103 | K41: =IFERROR(IF(Standard,J41/CalsPerPound,J41/CalsPerPound/2.2),"") -> 18.2 | L41: =IFERROR(WeightToLoseGain-K41,"") -> 1.80 | M41: =IFERROR(IF(B40<>"",L41/(WeightToLoseGain),""),"") -> 9%
B42: 2019-04-06 | D42: 30 | E42: 90.9 | F42: =IFERROR(RunningBMR,"") -> 1990 | G42: =IFERROR(IF(K41>0,F41*ActivityFactor+IF(WeightGoal="維持",0,IF(WeightGoal="減量",-500,IF(WeightGoal="増量",500))),""),"") -> 3286 | H42: =IFERROR(F42*(ActivityFactor),"") -> 3782 | I42: =IFERROR(IF(WeightGoal="増量",G42-H42,H42-G42),"") -> 496 | J42: 139607 | K42: =IFERROR(IF(Standard,J42/CalsPerPound,J42/CalsPerPound/2.2),"") -> 18.1 | L42: =IFERROR(WeightToLoseGain-K42,"") -> 1.87 | M42: =IFERROR(IF(B41<>"",L42/(WeightToLoseGain),""),"") -> 9%
B43: 2019-04-07 | D43: 31 | E43: 90.7 | F43: =IFERROR(RunningBMR,"") -> 1989 | G43: =IFERROR(IF(K42>0,F42*ActivityFactor+IF(WeightGoal="維持",0,IF(WeightGoal="減量",-500,IF(WeightGoal="増量",500))),""),"") -> 3282 | H43: =IFERROR(F43*(ActivityFactor),"") -> 3778 | I43: =IFERROR(IF(WeightGoal="増量",G43-H43,H43-G43),"") -> 496 | J43: 139111 | K43: =IFERROR(IF(Standard,J43/CalsPerPound,J43/CalsPerPound/2.2),"") -> 18.1 | L43: =IFERROR(WeightToLoseGain-K43,"") -> 1.93 | M43: =IFERROR(IF(B42<>"",L43/(WeightToLoseGain),""),"") -> 10%
B44: 2019-04-08 | D44: 32 | E44: 90.6 | F44: =IFERROR(RunningBMR,"") -> 1987 | G44: =IFERROR(IF(K43>0,F43*ActivityFactor+IF(WeightGoal="維持",0,IF(WeightGoal="減量",-500,IF(WeightGoal="増量",500))),""),"") -> 3278 | H44: =IFERROR(F44*(ActivityFactor),"") -> 3775 | I44: =IFERROR(IF(WeightGoal="増量",G44-H44,H44-G44),"") -> 496 | J44: 138614 | K44: =IFERROR(IF(Standard,J44/CalsPerPound,J44/CalsPerPound/2.2),"") -> 18.0 | L44: =IFERROR(WeightToLoseGain-K44,"") -> 2.00 | M44: =IFERROR(IF(B43<>"",L44/(WeightToLoseGain),""),"") -> 10%
B45: 2019-04-09 | D45: 33 | E45: 90.5 | F45: =IFERROR(RunningBMR,"") -> 1985 | G45: =IFERROR(IF(K44>0,F44*ActivityFactor+IF(WeightGoal="維持",0,IF(WeightGoal="減量",-500,IF(WeightGoal="増量",500))),""),"") -> 3275 | H45: =IFERROR(F45*(ActivityFactor),"") -> 3771 | I45: =IFERROR(IF(WeightGoal="増量",G45-H45,H45-G45),"") -> 496 | J45: 138118 | K45: =IFERROR(IF(Standard,J45/CalsPerPound,J45/CalsPerPound/2.2),"") -> 17.9 | L45: =IFERROR(WeightToLoseGain-K45,"") -> 2.06 | M45: =IFERROR(IF(B44<>"",L45/(WeightToLoseGain),""),"") -> 10%
B46: 2019-04-10 | D46: 34 | E46: 90.3 | F46: =IFERROR(RunningBMR,"") -> 1983 | G46: =IFERROR(IF(K45>0,F45*ActivityFactor+IF(WeightGoal="維持",0,IF(WeightGoal="減量",-500,IF(WeightGoal="増量",500))),""),"") -> 3271 | H46: =IFERROR(F46*(ActivityFactor),"") -> 3767 | I46: =IFERROR(IF(WeightGoal="増量",G46-H46,H46-G46),"") -> 496 | J46: 137622 | K46: =IFERROR(IF(Standard,J46/CalsPerPound,J46/CalsPerPound/2.2),"") -> 17.9 | L46: =IFERROR(WeightToLoseGain-K46,"") -> 2.13 | M46: =IFERROR(IF(B45<>"",L46/(WeightToLoseGain),""),"") -> 11%
B47: 2019-04-11 | D47: 35 | E47: 90.2 | F47: =IFERROR(RunningBMR,"") -> 1981 | G47: =IFERROR(IF(K46>0,F46*ActivityFactor+IF(WeightGoal="維持",0,IF(WeightGoal="減量",-500,IF(WeightGoal="増量",500))),""),"") -> 3267 | H47: =IFERROR(F47*(ActivityFactor),"") -> 3763 | I47: =IFERROR(IF(WeightGoal="増量",G47-H47,H47-G47),"") -> 496 | J47: 137126 | K47: =IFERROR(IF(Standard,J47/CalsPerPound,J47/CalsPerPound/2.2),"") -> 17.8 | L47: =IFERROR(WeightToLoseGain-K47,"") -> 2.19 | M47: =IFERROR(IF(B46<>"",L47/(WeightToLoseGain),""),"") -> 11%
B48: 2019-04-12 | C48: 6 | D48: 36 | E48: 90.0 | F48: =IFERROR(RunningBMR,"") -> 1979 | G48: =IFERROR(IF(K47>0,F47*ActivityFactor+IF(WeightGoal="維持",0,IF(WeightGoal="減量",-500,IF(WeightGoal="増量",500))),""),"") -> 3263 | H48: =IFERROR(F48*(ActivityFactor),"") -> 3760 | I48: =IFERROR(IF(WeightGoal="増量",G48-H48,H48-G48),"") -> 496 | J48: 136629 | K48: =IFERROR(IF(Standard,J48/CalsPerPound,J48/CalsPerPound/2.2),"") -> 17.7 | L48: =IFERROR(WeightToLoseGain-K48,"") -> 2.26 | M48: =IFERROR(IF(B47<>"",L48/(WeightToLoseGain),""),"") -> 11%
B49: 2019-04-13 | D49: 37 | E49: 89.9 | F49: =IFERROR(RunningBMR,"") -> 1977 | G49: =IFERROR(IF(K48>0,F48*ActivityFactor+IF(WeightGoal="維持",0,IF(WeightGoal="減量",-500,IF(WeightGoal="増量",500))),""),"") -> 3260 | H49: =IFERROR(F49*(ActivityFactor),"") -> 3756 | I49: =IFERROR(IF(WeightGoal="増量",G49-H49,H49-G49),"") -> 496 | J49: 136133 | K49: =IFERROR(IF(Standard,J49/CalsPerPound,J49/CalsPerPound/2.2),"") -> 17.7 | L49: =IFERROR(WeightToLoseGain-K49,"") -> 2.32 | M49: =IFERROR(IF(B48<>"",L49/(WeightToLoseGain),""),"") -> 12%
B50: 2019-04-14 | D50: 38 | E50: 89.8 | F50: =IFERROR(RunningBMR,"") -> 1975 | G50: =IFERROR(IF(K49>0,F49*ActivityFactor+IF(WeightGoal="維持",0,IF(WeightGoal="減量",-500,IF(WeightGoal="増量",500))),""),"") -> 3256 | H50: =IFERROR(F50*(ActivityFactor),"") -> 3752 | I50: =IFERROR(IF(WeightGoal="増量",G50-H50,H50-G50),"") -> 496 | J50: 135637 | K50: =IFERROR(IF(Standard,J50/CalsPerPound,J50/CalsPerPound/2.2),"") -> 17.6 | L50: =IFERROR(WeightToLoseGain-K50,"") -> 2.38 | M50: =IFERROR(IF(B49<>"",L50/(WeightToLoseGain),""),"") -> 12%
B51: 2019-04-15 | D51: 39 | E51: 89.6 | F51: =IFERROR(RunningBMR,"") -> 1973 | G51: =IFERROR(IF(K50>0,F50*ActivityFactor+IF(WeightGoal="維持",0,IF(WeightGoal="減量",-500,IF(WeightGoal="増量",500))),""),"") -> 3252 | H51: =IFERROR(F51*(ActivityFactor),"") -> 3749 | I51: =IFERROR(IF(WeightGoal="増量",G51-H51,H51-G51),"") -> 496 | J51: 135140 | K51: =IFERROR(IF(Standard,J51/CalsPerPound,J51/CalsPerPound/2.2),"") -> 17.6 | L51: =IFERROR(WeightToLoseGain-K51,"") -> 2.45 | M51: =IFERROR(IF(B50<>"",L51/(WeightToLoseGain),""),"") -> 12%
B52: 2019-04-16 | D52: 40 | E52: 89.5 | F52: =IFERROR(RunningBMR,"") -> 1971 | G52: =IFERROR(IF(K51>0,F51*ActivityFactor+IF(WeightGoal="維持",0,IF(WeightGoal="減量",-500,IF(WeightGoal="増量",500))),""),"") -> 3249 | H52: =IFERROR(F52*(ActivityFactor),"") -> 3745 | I52: =IFERROR(IF(WeightGoal="増量",G52-H52,H52-G52),"") -> 496 | J52: 134644 | K52: =IFERROR(IF(Standard,J52/CalsPerPound,J52/CalsPerPound/2.2),"") -> 17.5 | L52: =IFERROR(WeightToLoseGain-K52,"") -> 2.51 | M52: =IFERROR(IF(B51<>"",L52/(WeightToLoseGain),""),"") -> 13%
B53: 2019-04-17 | D53: 41 | E53: 89.3 | F53: =IFERROR(RunningBMR,"") -> 1969 | G53: =IFERROR(IF(K52>0,F52*ActivityFactor+IF(WeightGoal="維持",0,IF(WeightGoal="減量",-500,IF(WeightGoal="増量",500))),""),"") -> 3245 | H53: =IFERROR(F53*(ActivityFactor),"") -> 3741 | I53: =IFERROR(IF(WeightGoal="増量",G53-H53,H53-G53),"") -> 496 | J53: 134148 | K53: =IFERROR(IF(Standard,J53/CalsPerPound,J53/CalsPerPound/2.2),"") -> 17.4 | L53: =IFERROR(WeightToLoseGain-K53,"") -> 2.58 | M53: =IFERROR(IF(B52<>"",L53/(WeightToLoseGain),""),"") -> 13%
B54: 2019-04-18 | D54: 42 | E54: 89.2 | F54: =IFERROR(RunningBMR,"") -> 1967 | G54: =IFERROR(IF(K53>0,F53*ActivityFactor+IF(WeightGoal="維持",0,IF(WeightGoal="減量",-500,IF(WeightGoal="増量",500))),""),"") -> 3241 | H54: =IFERROR(F54*(ActivityFactor),"") -> 3738 | I54: =IFERROR(IF(WeightGoal="増量",G54-H54,H54-G54),"") -> 496 | J54: 133651 | K54: =IFERROR(IF(Standard,J54/CalsPerPound,J54/CalsPerPound/2.2),"") -> 17.4 | L54: =IFERROR(WeightToLoseGain-K54,"") -> 2.64 | M54: =IFERROR(IF(B53<>"",L54/(WeightToLoseGain),""),"") -> 13%
B55: 2019-04-19 | C55: 7 | D55: 43 | E55: 89.0 | F55: =IFERROR(RunningBMR,"") -> 1965 | G55: =IFERROR(IF(K54>0,F54*ActivityFactor+IF(WeightGoal="維持",0,IF(WeightGoal="減量",-500,IF(WeightGoal="増量",500))),""),"") -> 3238 | H55: =IFERROR(F55*(ActivityFactor),"") -> 3734 | I55: =IFERROR(IF(WeightGoal="増量",G55-H55,H55-G55),"") -> 496 | J55: 133155 | K55: =IFERROR(IF(Standard,J55/CalsPerPound,J55/CalsPerPound/2.2),"") -> 17.3 | L55: =IFERROR(WeightToLoseGain-K55,"") -> 2.71 | M55: =IFERROR(IF(B54<>"",L55/(WeightToLoseGain),""),"") -> 14%
B56: 2019-04-20 | D56: 44 | E56: 88.9 | F56: =IFERROR(RunningBMR,"") -> 1963 | G56: =IFERROR(IF(K55>0,F55*ActivityFactor+IF(WeightGoal="維持",0,IF(WeightGoal="減量",-500,IF(WeightGoal="増量",500))),""),"") -> 3234 | H56: =IFERROR(F56*(ActivityFactor),"") -> 3730 | I56: =IFERROR(IF(WeightGoal="増量",G56-H56,H56-G56),"") -> 496 | J56: 132659 | K56: =IFERROR(IF(Standard,J56/CalsPerPound,J56/CalsPerPound/2.2),"") -> 17.2 | L56: =IFERROR(WeightToLoseGain-K56,"") -> 2.77 | M56: =IFERROR(IF(B55<>"",L56/(WeightToLoseGain),""),"") -> 14%
B57: 2019-04-21 | D57: 45 | E57: 88.8 | F57: =IFERROR(RunningBMR,"") -> 1961 | G57: =IFERROR(IF(K56>0,F56*ActivityFactor+IF(WeightGoal="維持",0,IF(WeightGoal="減量",-500,IF(WeightGoal="増量",500))),""),"") -> 3230 | H57: =IFERROR(F57*(ActivityFactor),"") -> 3727 | I57: =IFERROR(IF(WeightGoal="増量",G57-H57,H57-G57),"") -> 496 | J57: 132162 | K57: =IFERROR(IF(Standard,J57/CalsPerPound,J57/CalsPerPound/2.2),"") -> 17.2 | L57: =IFERROR(WeightToLoseGain-K57,"") -> 2.84 | M57: =IFERROR(IF(B56<>"",L57/(WeightToLoseGain),""),"") -> 14%
B58: 2019-04-22 | D58: 46 | E58: 88.6 | F58: =IFERROR(RunningBMR,"") -> 1959 | G58: =IFERROR(IF(K57>0,F57*ActivityFactor+IF(WeightGoal="維持",0,IF(WeightGoal="減量",-500,IF(WeightGoal="増量",500))),""),"") -> 3227 | H58: =IFERROR(F58*(ActivityFactor),"") -> 3723 | I58: =IFERROR(IF(WeightGoal="増量",G58-H58,H58-G58),"") -> 496 | J58: 131666 | K58: =IFERROR(IF(Standard,J58/CalsPerPound,J58/CalsPerPound/2.2),"") -> 17.1 | L58: =IFERROR(WeightToLoseGain-K58,"") -> 2.90 | M58: =IFERROR(IF(B57<>"",L58/(WeightToLoseGain),""),"") -> 15%
B59: 2019-04-23 | D59: 47 | E59: 88.5 | F59: =IFERROR(RunningBMR,"") -> 1957 | G59: =IFERROR(IF(K58>0,F58*ActivityFactor+IF(WeightGoal="維持",0,IF(WeightGoal="減量",-500,IF(WeightGoal="増量",500))),""),"") -> 3223 | H59: =IFERROR(F59*(ActivityFactor),"") -> 3719 | I59: =IFERROR(IF(WeightGoal="増量",G59-H59,H59-G59),"") -> 496 | J59: 131170 | K59: =IFERROR(IF(Standard,J59/CalsPerPound,J59/CalsPerPound/2.2),"") -> 17.0 | L59: =IFERROR(WeightToLoseGain-K59,"") -> 2.96 | M59: =IFERROR(IF(B58<>"",L59/(WeightToLoseGain),""),"") -> 15%
B60: 2019-04-24 | D60: 48 | E60: 88.3 | F60: =IFERROR(RunningBMR,"") -> 1956 | G60: =IFERROR(IF(K59>0,F59*ActivityFactor+IF(WeightGoal="維持",0,IF(WeightGoal="減量",-500,IF(WeightGoal="増量",500))),""),"") -> 3219 | H60: =IFERROR(F60*(ActivityFactor),"") -> 3716 | I60: =IFERROR(IF(WeightGoal="増量",G60-H60,H60-G60),"") -> 496 | J60: 130674 | K60: =IFERROR(IF(Standard,J60/CalsPerPound,J60/CalsPerPound/2.2),"") -> 17.0 | L60: =IFERROR(WeightToLoseGain-K60,"") -> 3.03 | M60: =IFERROR(IF(B59<>"",L60/(WeightToLoseGain),""),"") -> 15%
B61: 2019-04-25 | D61: 49 | E61: 88.2 | F61: =IFERROR(RunningBMR,"") -> 1954 | G61: =IFERROR(IF(K60>0,F60*ActivityFactor+IF(WeightGoal="維持",0,IF(WeightGoal="減量",-500,IF(WeightGoal="増量",500))),""),"") -> 3216 | H61: =IFERROR(F61*(ActivityFactor),"") -> 3712 | I61: =IFERROR(IF(WeightGoal="増量",G61-H61,H61-G61),"") -> 496 | J61: 130177 | K61: =IFERROR(IF(Standard,J61/CalsPerPound,J61/CalsPerPound/2.2),"") -> 16.9 | L61: =IFERROR(WeightToLoseGain-K61,"") -> 3.09 | M61: =IFERROR(IF(B60<>"",L61/(WeightToLoseGain),""),"") -> 15%
B62: 2019-04-26 | C62: 8 | D62: 50 | E62: 88.1 | F62: =IFERROR(RunningBMR,"") -> 1952 | G62: =IFERROR(IF(K61>0,F61*ActivityFactor+IF(WeightGoal="維持",0,IF(WeightGoal="減量",-500,IF(WeightGoal="増量",500))),""),"") -> 3212 | H62: =IFERROR(F62*(ActivityFactor),"") -> 3708 | I62: =IFERROR(IF(WeightGoal="増量",G62-H62,H62-G62),"") -> 496 | J62: 129681 | K62: =IFERROR(IF(Standard,J62/CalsPerPound,J62/CalsPerPound/2.2),"") -> 16.8 | L62: =IFERROR(WeightToLoseGain-K62,"") -> 3.16 | M62: =IFERROR(IF(B61<>"",L62/(WeightToLoseGain),""),"") -> 16%
B63: 2019-04-27 | D63: 51 | E63: 87.9 | F63: =IFERROR(RunningBMR,"") -> 1950 | G63: =IFERROR(IF(K62>0,F62*ActivityFactor+IF(WeightGoal="維持",0,IF(WeightGoal="減量",-500,IF(WeightGoal="増量",500))),""),"") -> 3208 | H63: =IFERROR(F63*(ActivityFactor),"") -> 3704 | I63: =IFERROR(IF(WeightGoal="増量",G63-H63,H63-G63),"") -> 496 | J63: 129185 | K63: =IFERROR(IF(Standard,J63/CalsPerPound,J63/CalsPerPound/2.2),"") -> 16.8 | L63: =IFERROR(WeightToLoseGain-K63,"") -> 3.22 | M63: =IFERROR(IF(B62<>"",L63/(WeightToLoseGain),""),"") -> 16%
B64: 2019-04-28 | D64: 52 | E64: 87.8 | F64: =IFERROR(RunningBMR,"") -> 1948 | G64: =IFERROR(IF(K63>0,F63*ActivityFactor+IF(WeightGoal="維持",0,IF(WeightGoal="減量",-500,IF(WeightGoal="増量",500))),""),"") -> 3204 | H64: =IFERROR(F64*(ActivityFactor),"") -> 3701 | I64: =IFERROR(IF(WeightGoal="増量",G64-H64,H64-G64),"") -> 496 | J64: 128688 | K64: =IFERROR(IF(Standard,J64/CalsPerPound,J64/CalsPerPound/2.2),"") -> 16.7 | L64: =IFERROR(WeightToLoseGain-K64,"") -> 3.29 | M64: =IFERROR(IF(B63<>"",L64/(WeightToLoseGain),""),"") -> 16%
B65: 2019-04-29 | D65: 53 | E65: 87.6 | F65: =IFERROR(RunningBMR,"") -> 1946 | G65: =IFERROR(IF(K64>0,F64*ActivityFactor+IF(WeightGoal="維持",0,IF(WeightGoal="減量",-500,IF(WeightGoal="増量",500))),""),"") -> 3201 | H65: =IFERROR(F65*(ActivityFactor),"") -> 3697 | I65: =IFERROR(IF(WeightGoal="増量",G65-H65,H65-G65),"") -> 496 | J65: 128192 | K65: =IFERROR(IF(Standard,J65/CalsPerPound,J65/CalsPerPound/2.2),"") -> 16.6 | L65: =IFERROR(WeightToLoseGain-K65,"") -> 3.35 | M65: =IFERROR(IF(B64<>"",L65/(WeightToLoseGain),""),"") -> 17%
B66: 2019-04-30 | D66: 54 | E66: 87.5 | F66: =IFERROR(RunningBMR,"") -> 1944 | G66: =IFERROR(IF(K65>0,F65*ActivityFactor+IF(WeightGoal="維持",0,IF(WeightGoal="減量",-500,IF(WeightGoal="増量",500))),""),"") -> 3197 | H66: =IFERROR(F66*(ActivityFactor),"") -> 3693 | I66: =IFERROR(IF(WeightGoal="増量",G66-H66,H66-G66),"") -> 496 | J66: 127696 | K66: =IFERROR(IF(Standard,J66/CalsPerPound,J66/CalsPerPound/2.2),"") -> 16.6 | L66: =IFERROR(WeightToLoseGain-K66,"") -> 3.42 | M66: =IFERROR(IF(B65<>"",L66/(WeightToLoseGain),""),"") -> 17%
B67: 2019-05-01 | D67: 55 | E67: 87.3 | F67: =IFERROR(RunningBMR,"") -> 1942 | G67: =IFERROR(IF(K66>0,F66*ActivityFactor+IF(WeightGoal="維持",0,IF(WeightGoal="減量",-500,IF(WeightGoal="増量",500))),""),"") -> 3193 | H67: =IFERROR(F67*(ActivityFactor),"") -> 3690 | I67: =IFERROR(IF(WeightGoal="増量",G67-H67,H67-G67),"") -> 496 | J67: 127199 | K67: =IFERROR(IF(Standard,J67/CalsPerPound,J67/CalsPerPound/2.2),"") -> 16.5 | L67: =IFERROR(WeightToLoseGain-K67,"") -> 3.48 | M67: =IFERROR(IF(B66<>"",L67/(WeightToLoseGain),""),"") -> 17%
B68: 2019-05-02 | D68: 56 | E68: 87.2 | F68: =IFERROR(RunningBMR,"") -> 1940 | G68: =IFERROR(IF(K67>0,F67*ActivityFactor+IF(WeightGoal="維持",0,IF(WeightGoal="減量",-500,IF(WeightGoal="増量",500))),""),"") -> 3190 | H68: =IFERROR(F68*(ActivityFactor),"") -> 3686 | I68: =IFERROR(IF(WeightGoal="増量",G68-H68,H68-G68),"") -> 496 | J68: 126703 | K68: =IFERROR(IF(Standard,J68/CalsPerPound,J68/CalsPerPound/2.2),"") -> 16.5 | L68: =IFERROR(WeightToLoseGain-K68,"") -> 3.55 | M68: =IFERROR(IF(B67<>"",L68/(WeightToLoseGain),""),"") -> 18%
B69: 2019-05-03 | C69: 9 | D69: 57 | E69: 87.1 | F69: =IFERROR(RunningBMR,"") -> 1938 | G69: =IFERROR(IF(K68>0,F68*ActivityFactor+IF(WeightGoal="維持",0,IF(WeightGoal="減量",-500,IF(WeightGoal="増量",500))),""),"") -> 3186 | H69: =IFERROR(F69*(ActivityFactor),"") -> 3682 | I69: =IFERROR(IF(WeightGoal="増量",G69-H69,H69-G69),"") -> 496 | J69: 126207 | K69: =IFERROR(IF(Standard,J69/CalsPerPound,J69/CalsPerPound/2.2),"") -> 16.4 | L69: =IFERROR(WeightToLoseGain-K69,"") -> 3.61 | M69: =IFERROR(IF(B68<>"",L69/(WeightToLoseGain),""),"") -> 18%
B70: 2019-05-04 | D70: 58 | E70: 86.9 | F70: =IFERROR(RunningBMR,"") -> 1936 | G70: =IFERROR(IF(K69>0,F69*ActivityFactor+IF(WeightGoal="維持",0,IF(WeightGoal="減量",-500,IF(WeightGoal="増量",500))),""),"") -> 3182 | H70: =IFERROR(F70*(ActivityFactor),"") -> 3679 | I70: =IFERROR(IF(WeightGoal="増量",G70-H70,H70-G70),"") -> 496 | J70: 125710 | K70: =IFERROR(IF(Standard,J70/CalsPerPound,J70/CalsPerPound/2.2),"") -> 16.3 | L70: =IFERROR(WeightToLoseGain-K70,"") -> 3.67 | M70: =IFERROR(IF(B69<>"",L70/(WeightToLoseGain),""),"") -> 18%
B71: 2019-05-05 | D71: 59 | E71: 86.8 | F71: =IFERROR(RunningBMR,"") -> 1934 | G71: =IFERROR(IF(K70>0,F70*ActivityFactor+IF(WeightGoal="維持",0,IF(WeightGoal="減量",-500,IF(WeightGoal="増量",500))),""),"") -> 3179 | H71: =IFERROR(F71*(ActivityFactor),"") -> 3675 | I71: =IFERROR(IF(WeightGoal="増量",G71-H71,H71-G71),"") -> 496 | J71: 125214 | K71: =IFERROR(IF(Standard,J71/CalsPerPound,J71/CalsPerPound/2.2),"") -> 16.3 | L71: =IFERROR(WeightToLoseGain-K71,"") -> 3.74 | M71: =IFERROR(IF(B70<>"",L71/(WeightToLoseGain),""),"") -> 19%
B72: 2019-05-06 | D72: 60 | E72: 86.6 | F72: =IFERROR(RunningBMR,"") -> 1932 | G72: =IFERROR(IF(K71>0,F71*ActivityFactor+IF(WeightGoal="維持",0,IF(WeightGoal="減量",-500,IF(WeightGoal="増量",500))),""),"") -> 3175 | H72: =IFERROR(F72*(ActivityFactor),"") -> 3671 | I72: =IFERROR(IF(WeightGoal="増量",G72-H72,H72-G72),"") -> 496 | J72: 124718 | K72: =IFERROR(IF(Standard,J72/CalsPerPound,J72/CalsPerPound/2.2),"") -> 16.2 | L72: =IFERROR(WeightToLoseGain-K72,"") -> 3.80 | M72: =IFERROR(IF(B71<>"",L72/(WeightToLoseGain),""),"") -> 19%
B73: 2019-05-07 | D73: 61 | E73: 86.5 | F73: =IFERROR(RunningBMR,"") -> 1930 | G73: =IFERROR(IF(K72>0,F72*ActivityFactor+IF(WeightGoal="維持",0,IF(WeightGoal="減量",-500,IF(WeightGoal="増量",500))),""),"") -> 3171 | H73: =IFERROR(F73*(ActivityFactor),"") -> 3668 | I73: =IFERROR(IF(WeightGoal="増量",G73-H73,H73-G73),"") -> 496 | J73: 124221 | K73: =IFERROR(IF(Standard,J73/CalsPerPound,J73/CalsPerPound/2.2),"") -> 16.1 | L73: =IFERROR(WeightToLoseGain-K73,"") -> 3.87 | M73: =IFERROR(IF(B72<>"",L73/(WeightToLoseGain),""),"") -> 19%
B74: 2019-05-08 | D74: 62 | E74: 86.3 | F74: =IFERROR(RunningBMR,"") -> 1928 | G74: =IFERROR(IF(K73>0,F73*ActivityFactor+IF(WeightGoal="維持",0,IF(WeightGoal="減量",-500,IF(WeightGoal="増量",500))),""),"") -> 3168 | H74: =IFERROR(F74*(ActivityFactor),"") -> 3664 | I74: =IFERROR(IF(WeightGoal="増量",G74-H74,H74-G74),"") -> 496 | J74: 123725 | K74: =IFERROR(IF(Standard,J74/CalsPerPound,J74/CalsPerPound/2.2),"") -> 16.1 | L74: =IFERROR(WeightToLoseGain-K74,"") -> 3.93 | M74: =IFERROR(IF(B73<>"",L74/(WeightToLoseGain),""),"") -> 20%
B75: 2019-05-09 | D75: 63 | E75: 86.2 | F75: =IFERROR(RunningBMR,"") -> 1926 | G75: =IFERROR(IF(K74>0,F74*ActivityFactor+IF(WeightGoal="維持",0,IF(WeightGoal="減量",-500,IF(WeightGoal="増量",500))),""),"") -> 3164 | H75: =IFERROR(F75*(ActivityFactor),"") -> 3660 | I75: =IFERROR(IF(WeightGoal="増量",G75-H75,H75-G75),"") -> 496 | J75: 123229 | K75: =IFERROR(IF(Standard,J75/CalsPerPound,J75/CalsPerPound/2.2),"") -> 16.0 | L75: =IFERROR(WeightToLoseGain-K75,"") -> 4.00 | M75: =IFERROR(IF(B74<>"",L75/(WeightToLoseGain),""),"") -> 20%
B76: 2019-05-10 | C76: 10 | D76: 64 | E76: 86.1 | F76: =IFERROR(RunningBMR,"") -> 1924 | G76: =IFERROR(IF(K75>0,F75*ActivityFactor+IF(WeightGoal="維持",0,IF(WeightGoal="減量",-500,IF(WeightGoal="増量",500))),""),"") -> 3160 | H76: =IFERROR(F76*(ActivityFactor),"") -> 3656 | I76: =IFERROR(IF(WeightGoal="増量",G76-H76,H76-G76),"") -> 496 | J76: 122733 | K76: =IFERROR(IF(Standard,J76/CalsPerPound,J76/CalsPerPound/2.2),"") -> 15.9 | L76: =IFERROR(WeightToLoseGain-K76,"") -> 4.06 | M76: =IFERROR(IF(B75<>"",L76/(WeightToLoseGain),""),"") -> 20%
B77: 2019-05-11 | D77: 65 | E77: 85.9 | F77: =IFERROR(RunningBMR,"") -> 1923 | G77: =IFERROR(IF(K76>0,F76*ActivityFactor+IF(WeightGoal="維持",0,IF(WeightGoal="減量",-500,IF(WeightGoal="増量",500))),""),"") -> 3156 | H77: =IFERROR(F77*(ActivityFactor),"") -> 3653 | I77: =IFERROR(IF(WeightGoal="増量",G77-H77,H77-G77),"") -> 496 | J77: 122236 | K77: =IFERROR(IF(Standard,J77/CalsPerPound,J77/CalsPerPound/2.2),"") -> 15.9 | L77: =IFERROR(WeightToLoseGain-K77,"") -> 4.13 | M77: =IFERROR(IF(B76<>"",L77/(WeightToLoseGain),""),"") -> 21%
B78: =IFERROR(IF(K77>0,B77+1,""),"") -> 2019-05-12 | D78: =IFERROR(IF(K77>0,D77+1,""),"") -> 66 | E78: =IFERROR(IF($D78<>"",E77-(I77/CalsPerPound),""),"") -> 85.8 | F78: =IFERROR(RunningBMR,"") -> 1921 | G78: =IFERROR(IF(K77>0,F77*ActivityFactor+IF(WeightGoal="維持",0,IF(WeightGoal="減量",-500,IF(WeightGoal="増量",500))),""),"") -> 3153 | H78: =IFERROR(F78*(ActivityFactor),"") -> 3649 | I78: =IFERROR(IF(WeightGoal="増量",G78-H78,H78-G78),"") -> 496 | J78: 121740 | K78: =IFERROR(IF(Standard,J78/CalsPerPound,J78/CalsPerPound/2.2),"") -> 15.8 | L78: =IFERROR(WeightToLoseGain-K78,"") -> 4.19 | M78: =IFERROR(IF(B77<>"",L78/(WeightToLoseGain),""),"") -> 21%
B79: 2019-05-13 | C79: =IFERROR(IF(D79<>"",IF(MOD(D79,7)=1,(D78/7)+1,""),""),"") ->  | D79: 67 | E79: 85.6 | F79: =IFERROR(RunningBMR,"") -> 1919 | G79: =IFERROR(IF(K78>0,F78*ActivityFactor+IF(WeightGoal="維持",0,IF(WeightGoal="減量",-500,IF(WeightGoal="増量",500))),""),"") -> 3149 | H79: =IFERROR(F79*(ActivityFactor),"") -> 3645 | I79: =IFERROR(IF(WeightGoal="増量",G79-H79,H79-G79),"") -> 496 | J79: =IFERROR(J78-I79,"") -> 121244 | K79: =IFERROR(IF(Standard,J79/CalsPerPound,J79/CalsPerPound/2.2),"") -> 15.7 | L79: =IFERROR(WeightToLoseGain-K79,"") -> 4.25 | M79: =IFERROR(IF(B78<>"",L79/(WeightToLoseGain),""),"") -> 21%
B80: 2019-05-14 | D80: 68 | E80: 85.5 | F80: =IFERROR(RunningBMR,"") -> 1917 | G80: =IFERROR(IF(K79>0,F79*ActivityFactor+IF(WeightGoal="維持",0,IF(WeightGoal="減量",-500,IF(WeightGoal="増量",500))),""),"") -> 3145 | H80: =IFERROR(F80*(ActivityFactor),"") -> 3642 | I80: =IFERROR(IF(WeightGoal="増量",G80-H80,H80-G80),"") -> 496 | J80: 120747 | K80: =IFERROR(IF(Standard,J80/CalsPerPound,J80/CalsPerPound/2.2),"") -> 15.7 | L80: =IFERROR(WeightToLoseGain-K80,"") -> 4.32 | M80: =IFERROR(IF(B79<>"",L80/(WeightToLoseGain),""),"") -> 22%
B81: 2019-05-15 | D81: 69 | E81: 85.4 | F81: =IFERROR(RunningBMR,"") -> 1915 | G81: =IFERROR(IF(K80>0,F80*ActivityFactor+IF(WeightGoal="維持",0,IF(WeightGoal="減量",-500,IF(WeightGoal="増量",500))),""),"") -> 3142 | H81: =IFERROR(F81*(ActivityFactor),"") -> 3638 | I81: =IFERROR(IF(WeightGoal="増量",G81-H81,H81-G81),"") -> 496 | J81: 120251 | K81: =IFERROR(IF(Standard,J81/CalsPerPound,J81/CalsPerPound/2.2),"") -> 15.6 | L81: =IFERROR(WeightToLoseGain-K81,"") -> 4.38 | M81: =IFERROR(IF(B80<>"",L81/(WeightToLoseGain),""),"") -> 22%
B82: 2019-05-16 | D82: 70 | E82: 85.2 | F82: =IFERROR(RunningBMR,"") -> 1913 | G82: =IFERROR(IF(K81>0,F81*ActivityFactor+IF(WeightGoal="維持",0,IF(WeightGoal="減量",-500,IF(WeightGoal="増量",500))),""),"") -> 3138 | H82: =IFERROR(F82*(ActivityFactor),"") -> 3634 | I82: =IFERROR(IF(WeightGoal="増量",G82-H82,H82-G82),"") -> 496 | J82: 119755 | K82: =IFERROR(IF(Standard,J82/CalsPerPound,J82/CalsPerPound/2.2),"") -> 15.6 | L82: =IFERROR(WeightToLoseGain-K82,"") -> 4.45 | M82: =IFERROR(IF(B81<>"",L82/(WeightToLoseGain),""),"") -> 22%
B83: 2019-05-17 | C83: 11 | D83: 71 | E83: 85.1 | F83: =IFERROR(RunningBMR,"") -> 1911 | G83: =IFERROR(IF(K82>0,F82*ActivityFactor+IF(WeightGoal="維持",0,IF(WeightGoal="減量",-500,IF(WeightGoal="増量",500))),""),"") -> 3134 | H83: =IFERROR(F83*(ActivityFactor),"") -> 3631 | I83: =IFERROR(IF(WeightGoal="増量",G83-H83,H83-G83),"") -> 496 | J83: 119258 | K83: =IFERROR(IF(Standard,J83/CalsPerPound,J83/CalsPerPound/2.2),"") -> 15.5 | L83: =IFERROR(WeightToLoseGain-K83,"") -> 4.51 | M83: =IFERROR(IF(B82<>"",L83/(WeightToLoseGain),""),"") -> 23%
B84: 2019-05-18 | D84: 72 | E84: 84.9 | F84: =IFERROR(RunningBMR,"") -> 1909 | G84: =IFERROR(IF(K83>0,F83*ActivityFactor+IF(WeightGoal="維持",0,IF(WeightGoal="減量",-500,IF(WeightGoal="増量",500))),""),"") -> 3131 | H84: =IFERROR(F84*(ActivityFactor),"") -> 3627 | I84: =IFERROR(IF(WeightGoal="増量",G84-H84,H84-G84),"") -> 496 | J84: 118762 | K84: =IFERROR(IF(Standard,J84/CalsPerPound,J84/CalsPerPound/2.2),"") -> 15.4 | L84: =IFERROR(WeightToLoseGain-K84,"") -> 4.58 | M84: =IFERROR(IF(B83<>"",L84/(WeightToLoseGain),""),"") -> 23%
B85: 2019-05-19 | D85: 73 | E85: 84.8 | F85: =IFERROR(RunningBMR,"") -> 1907 | G85: =IFERROR(IF(K84>0,F84*ActivityFactor+IF(WeightGoal="維持",0,IF(WeightGoal="減量",-500,IF(WeightGoal="増量",500))),""),"") -> 3127 | H85: =IFERROR(F85*(ActivityFactor),"") -> 3623 | I85: =IFERROR(IF(WeightGoal="増量",G85-H85,H85-G85),"") -> 496 | J85: 118266 | K85: =IFERROR(IF(Standard,J85/CalsPerPound,J85/CalsPerPound/2.2),"") -> 15.4 | L85: =IFERROR(WeightToLoseGain-K85,"") -> 4.64 | M85: =IFERROR(IF(B84<>"",L85/(WeightToLoseGain),""),"") -> 23%
B86: 2019-05-20 | D86: 74 | E86: 84.6 | F86: =IFERROR(RunningBMR,"") -> 1905 | G86: =IFERROR(IF(K85>0,F85*ActivityFactor+IF(WeightGoal="維持",0,IF(WeightGoal="減量",-500,IF(WeightGoal="増量",500))),""),"") -> 3123 | H86: =IFERROR(F86*(ActivityFactor),"") -> 3620 | I86: =IFERROR(IF(WeightGoal="増量",G86-H86,H86-G86),"") -> 496 | J86: 117769 | K86: =IFERROR(IF(Standard,J86/CalsPerPound,J86/CalsPerPound/2.2),"") -> 15.3 | L86: =IFERROR(WeightToLoseGain-K86,"") -> 4.71 | M86: =IFERROR(IF(B85<>"",L86/(WeightToLoseGain),""),"") -> 24%
B87: 2019-05-21 | D87: 75 | E87: 84.5 | F87: =IFERROR(RunningBMR,"") -> 1903 | G87: =IFERROR(IF(K86>0,F86*ActivityFactor+IF(WeightGoal="維持",0,IF(WeightGoal="減量",-500,IF(WeightGoal="増量",500))),""),"") -> 3120 | H87: =IFERROR(F87*(ActivityFactor),"") -> 3616 | I87: =IFERROR(IF(WeightGoal="増量",G87-H87,H87-G87),"") -> 496 | J87: 117273 | K87: =IFERROR(IF(Standard,J87/CalsPerPound,J87/CalsPerPound/2.2),"") -> 15.2 | L87: =IFERROR(WeightToLoseGain-K87,"") -> 4.77 | M87: =IFERROR(IF(B86<>"",L87/(WeightToLoseGain),""),"") -> 24%
B88: 2019-05-22 | D88: 76 | E88: 84.4 | F88: =IFERROR(RunningBMR,"") -> 1901 | G88: =IFERROR(IF(K87>0,F87*ActivityFactor+IF(WeightGoal="維持",0,IF(WeightGoal="減量",-500,IF(WeightGoal="増量",500))),""),"") -> 3116 | H88: =IFERROR(F88*(ActivityFactor),"") -> 3612 | I88: =IFERROR(IF(WeightGoal="増量",G88-H88,H88-G88),"") -> 496 | J88: 116777 | K88: =IFERROR(IF(Standard,J88/CalsPerPound,J88/CalsPerPound/2.2),"") -> 15.2 | L88: =IFERROR(WeightToLoseGain-K88,"") -> 4.83 | M88: =IFERROR(IF(B87<>"",L88/(WeightToLoseGain),""),"") -> 24%
B89: 2019-05-23 | D89: 77 | E89: 84.2 | F89: =IFERROR(RunningBMR,"") -> 1899 | G89: =IFERROR(IF(K88>0,F88*ActivityFactor+IF(WeightGoal="維持",0,IF(WeightGoal="減量",-500,IF(WeightGoal="増量",500))),""),"") -> 3112 | H89: =IFERROR(F89*(ActivityFactor),"") -> 3608 | I89: =IFERROR(IF(WeightGoal="増量",G89-H89,H89-G89),"") -> 496 | J89: 116281 | K89: =IFERROR(IF(Standard,J89/CalsPerPound,J89/CalsPerPound/2.2),"") -> 15.1 | L89: =IFERROR(WeightToLoseGain-K89,"") -> 4.90 | M89: =IFERROR(IF(B88<>"",L89/(WeightToLoseGain),""),"") -> 24%
B90: 2019-05-24 | C90: 12 | D90: 78 | E90: 84.1 | F90: =IFERROR(RunningBMR,"") -> 1897 | G90: =IFERROR(IF(K89>0,F89*ActivityFactor+IF(WeightGoal="維持",0,IF(WeightGoal="減量",-500,IF(WeightGoal="増量",500))),""),"") -> 3108 | H90: =IFERROR(F90*(ActivityFactor),"") -> 3605 | I90: =IFERROR(IF(WeightGoal="増量",G90-H90,H90-G90),"") -> 496 | J90: 115784 | K90: =IFERROR(IF(Standard,J90/CalsPerPound,J90/CalsPerPound/2.2),"") -> 15.0 | L90: =IFERROR(WeightToLoseGain-K90,"") -> 4.96 | M90: =IFERROR(IF(B89<>"",L90/(WeightToLoseGain),""),"") -> 25%
B91: 2019-05-25 | D91: 79 | E91: 83.9 | F91: =IFERROR(RunningBMR,"") -> 1895 | G91: =IFERROR(IF(K90>0,F90*ActivityFactor+IF(WeightGoal="維持",0,IF(WeightGoal="減量",-500,IF(WeightGoal="増量",500))),""),"") -> 3105 | H91: =IFERROR(F91*(ActivityFactor),"") -> 3601 | I91: =IFERROR(IF(WeightGoal="増量",G91-H91,H91-G91),"") -> 496 | J91: 115288 | K91: =IFERROR(IF(Standard,J91/CalsPerPound,J91/CalsPerPound/2.2),"") -> 15.0 | L91: =IFERROR(WeightToLoseGain-K91,"") -> 5.03 | M91: =IFERROR(IF(B90<>"",L91/(WeightToLoseGain),""),"") -> 25%
B92: 2019-05-26 | D92: 80 | E92: 83.8 | F92: =IFERROR(RunningBMR,"") -> 1893 | G92: =IFERROR(IF(K91>0,F91*ActivityFactor+IF(WeightGoal="維持",0,IF(WeightGoal="減量",-500,IF(WeightGoal="増量",500))),""),"") -> 3101 | H92: =IFERROR(F92*(ActivityFactor),"") -> 3597 | I92: =IFERROR(IF(WeightGoal="増量",G92-H92,H92-G92),"") -> 496 | J92: 114792 | K92: =IFERROR(IF(Standard,J92/CalsPerPound,J92/CalsPerPound/2.2),"") -> 14.9 | L92: =IFERROR(WeightToLoseGain-K92,"") -> 5.09 | M92: =IFERROR(IF(B91<>"",L92/(WeightToLoseGain),""),"") -> 25%
B93: 2019-05-27 | D93: 81 | E93: 83.7 | F93: =IFERROR(RunningBMR,"") -> 1891 | G93: =IFERROR(IF(K92>0,F92*ActivityFactor+IF(WeightGoal="維持",0,IF(WeightGoal="減量",-500,IF(WeightGoal="増量",500))),""),"") -> 3097 | H93: =IFERROR(F93*(ActivityFactor),"") -> 3594 | I93: =IFERROR(IF(WeightGoal="増量",G93-H93,H93-G93),"") -> 496 | J93: 114295 | K93: =IFERROR(IF(Standard,J93/CalsPerPound,J93/CalsPerPound/2.2),"") -> 14.8 | L93: =IFERROR(WeightToLoseGain-K93,"") -> 5.16 | M93: =IFERROR(IF(B92<>"",L93/(WeightToLoseGain),""),"") -> 26%
B94: 2019-05-28 | D94: 82 | E94: 83.5 | F94: =IFERROR(RunningBMR,"") -> 1889 | G94: =IFERROR(IF(K93>0,F93*ActivityFactor+IF(WeightGoal="維持",0,IF(WeightGoal="減量",-500,IF(WeightGoal="増量",500))),""),"") -> 3094 | H94: =IFERROR(F94*(ActivityFactor),"") -> 3590 | I94: =IFERROR(IF(WeightGoal="増量",G94-H94,H94-G94),"") -> 496 | J94: 113799 | K94: =IFERROR(IF(Standard,J94/CalsPerPound,J94/CalsPerPound/2.2),"") -> 14.8 | L94: =IFERROR(WeightToLoseGain-K94,"") -> 5.22 | M94: =IFERROR(IF(B93<>"",L94/(WeightToLoseGain),""),"") -> 26%
B95: 2019-05-29 | D95: 83 | E95: 83.4 | F95: =IFERROR(RunningBMR,"") -> 1888 | G95: =IFERROR(IF(K94>0,F94*ActivityFactor+IF(WeightGoal="維持",0,IF(WeightGoal="減量",-500,IF(WeightGoal="増量",500))),""),"") -> 3090 | H95: =IFERROR(F95*(ActivityFactor),"") -> 3586 | I95: =IFERROR(IF(WeightGoal="増量",G95-H95,H95-G95),"") -> 496 | J95: 113303 | K95: =IFERROR(IF(Standard,J95/CalsPerPound,J95/CalsPerPound/2.2),"") -> 14.7 | L95: =IFERROR(WeightToLoseGain-K95,"") -> 5.29 | M95: =IFERROR(IF(B94<>"",L95/(WeightToLoseGain),""),"") -> 26%
B96: 2019-05-30 | D96: 84 | E96: 83.2 | F96: =IFERROR(RunningBMR,"") -> 1886 | G96: =IFERROR(IF(K95>0,F95*ActivityFactor+IF(WeightGoal="維持",0,IF(WeightGoal="減量",-500,IF(WeightGoal="増量",500))),""),"") -> 3086 | H96: =IFERROR(F96*(ActivityFactor),"") -> 3583 | I96: =IFERROR(IF(WeightGoal="増量",G96-H96,H96-G96),"") -> 496 | J96: 112806 | K96: =IFERROR(IF(Standard,J96/CalsPerPound,J96/CalsPerPound/2.2),"") -> 14.7 | L96: =IFERROR(WeightToLoseGain-K96,"") -> 5.35 | M96: =IFERROR(IF(B95<>"",L96/(WeightToLoseGain),""),"") -> 27%
B97: 2019-05-31 | C97: 13 | D97: 85 | E97: 83.1 | F97: =IFERROR(RunningBMR,"") -> 1884 | G97: =IFERROR(IF(K96>0,F96*ActivityFactor+IF(WeightGoal="維持",0,IF(WeightGoal="減量",-500,IF(WeightGoal="増量",500))),""),"") -> 3083 | H97: =IFERROR(F97*(ActivityFactor),"") -> 3579 | I97: =IFERROR(IF(WeightGoal="増量",G97-H97,H97-G97),"") -> 496 | J97: 112310 | K97: =IFERROR(IF(Standard,J97/CalsPerPound,J97/CalsPerPound/2.2),"") -> 14.6 | L97: =IFERROR(WeightToLoseGain-K97,"") -> 5.41 | M97: =IFERROR(IF(B96<>"",L97/(WeightToLoseGain),""),"") -> 27%
B98: 2019-06-01 | D98: 86 | E98: 82.9 | F98: =IFERROR(RunningBMR,"") -> 1882 | G98: =IFERROR(IF(K97>0,F97*ActivityFactor+IF(WeightGoal="維持",0,IF(WeightGoal="減量",-500,IF(WeightGoal="増量",500))),""),"") -> 3079 | H98: =IFERROR(F98*(ActivityFactor),"") -> 3575 | I98: =IFERROR(IF(WeightGoal="増量",G98-H98,H98-G98),"") -> 496 | J98: 111814 | K98: =IFERROR(IF(Standard,J98/CalsPerPound,J98/CalsPerPound/2.2),"") -> 14.5 | L98: =IFERROR(WeightToLoseGain-K98,"") -> 5.48 | M98: =IFERROR(IF(B97<>"",L98/(WeightToLoseGain),""),"") -> 27%
B99: 2019-06-02 | D99: 87 | E99: 82.8 | F99: =IFERROR(RunningBMR,"") -> 1880 | G99: =IFERROR(IF(K98>0,F98*ActivityFactor+IF(WeightGoal="維持",0,IF(WeightGoal="減量",-500,IF(WeightGoal="増量",500))),""),"") -> 3075 | H99: =IFERROR(F99*(ActivityFactor),"") -> 3572 | I99: =IFERROR(IF(WeightGoal="増量",G99-H99,H99-G99),"") -> 496 | J99: 111317 | K99: =IFERROR(IF(Standard,J99/CalsPerPound,J99/CalsPerPound/2.2),"") -> 14.5 | L99: =IFERROR(WeightToLoseGain-K99,"") -> 5.54 | M99: =IFERROR(IF(B98<>"",L99/(WeightToLoseGain),""),"") -> 28%
B100: 2019-06-03 | D100: 88 | E100: 82.7 | F100: =IFERROR(RunningBMR,"") -> 1878 | G100: =IFERROR(IF(K99>0,F99*ActivityFactor+IF(WeightGoal="維持",0,IF(WeightGoal="減量",-500,IF(WeightGoal="増量",500))),""),"") -> 3072 | H100: =IFERROR(F100*(ActivityFactor),"") -> 3568 | I100: =IFERROR(IF(WeightGoal="増量",G100-H100,H100-G100),"") -> 496 | J100: 110821 | K100: =IFERROR(IF(Standard,J100/CalsPerPound,J100/CalsPerPound/2.2),"") -> 14.4 | L100: =IFERROR(WeightToLoseGain-K100,"") -> 5.61 | M100: =IFERROR(IF(B99<>"",L100/(WeightToLoseGain),""),"") -> 28%
B101: 2019-06-04 | D101: 89 | E101: 82.5 | F101: =IFERROR(RunningBMR,"") -> 1876 | G101: =IFERROR(IF(K100>0,F100*ActivityFactor+IF(WeightGoal="維持",0,IF(WeightGoal="減量",-500,IF(WeightGoal="増量",500))),""),"") -> 3068 | H101: =IFERROR(F101*(ActivityFactor),"") -> 3564 | I101: =IFERROR(IF(WeightGoal="増量",G101-H101,H101-G101),"") -> 496 | J101: 110325 | K101: =IFERROR(IF(Standard,J101/CalsPerPound,J101/CalsPerPound/2.2),"") -> 14.3 | L101: =IFERROR(WeightToLoseGain-K101,"") -> 5.67 | M101: =IFERROR(IF(B100<>"",L101/(WeightToLoseGain),""),"") -> 28%
B102: 2019-06-05 | D102: 90 | E102: 82.4 | F102: =IFERROR(RunningBMR,"") -> 1874 | G102: =IFERROR(IF(K101>0,F101*ActivityFactor+IF(WeightGoal="維持",0,IF(WeightGoal="減量",-500,IF(WeightGoal="増量",500))),""),"") -> 3064 | H102: =IFERROR(F102*(ActivityFactor),"") -> 3560 | I102: =IFERROR(IF(WeightGoal="増量",G102-H102,H102-G102),"") -> 496 | J102: 109829 | K102: =IFERROR(IF(Standard,J102/CalsPerPound,J102/CalsPerPound/2.2),"") -> 14.3 | L102: =IFERROR(WeightToLoseGain-K102,"") -> 5.74 | M102: =IFERROR(IF(B101<>"",L102/(WeightToLoseGain),""),"") -> 29%
B103: 2019-06-06 | D103: 91 | E103: 82.2 | F103: =IFERROR(RunningBMR,"") -> 1872 | G103: =IFERROR(IF(K102>0,F102*ActivityFactor+IF(WeightGoal="維持",0,IF(WeightGoal="減量",-500,IF(WeightGoal="増量",500))),""),"") -> 3060 | H103: =IFERROR(F103*(ActivityFactor),"") -> 3557 | I103: =IFERROR(IF(WeightGoal="増量",G103-H103,H103-G103),"") -> 496 | J103: 109332 | K103: =IFERROR(IF(Standard,J103/CalsPerPound,J103/CalsPerPound/2.2),"") -> 14.2 | L103: =IFERROR(WeightToLoseGain-K103,"") -> 5.80 | M103: =IFERROR(IF(B102<>"",L103/(WeightToLoseGain),""),"") -> 29%
B104: 2019-06-07 | C104: 14 | D104: 92 | E104: 82.1 | F104: =IFERROR(RunningBMR,"") -> 1870 | G104: =IFERROR(IF(K103>0,F103*ActivityFactor+IF(WeightGoal="維持",0,IF(WeightGoal="減量",-500,IF(WeightGoal="増量",500))),""),"") -> 3057 | H104: =IFERROR(F104*(ActivityFactor),"") -> 3553 | I104: =IFERROR(IF(WeightGoal="増量",G104-H104,H104-G104),"") -> 496 | J104: 108836 | K104: =IFERROR(IF(Standard,J104/CalsPerPound,J104/CalsPerPound/2.2),"") -> 14.1 | L104: =IFERROR(WeightToLoseGain-K104,"") -> 5.87 | M104: =IFERROR(IF(B103<>"",L104/(WeightToLoseGain),""),"") -> 29%
B105: 2019-06-08 | D105: 93 | E105: 82.0 | F105: =IFERROR(RunningBMR,"") -> 1868 | G105: =IFERROR(IF(K104>0,F104*ActivityFactor+IF(WeightGoal="維持",0,IF(WeightGoal="減量",-500,IF(WeightGoal="増量",500))),""),"") -> 3053 | H105: =IFERROR(F105*(ActivityFactor),"") -> 3549 | I105: =IFERROR(IF(WeightGoal="増量",G105-H105,H105-G105),"") -> 496 | J105: 108340 | K105: =IFERROR(IF(Standard,J105/CalsPerPound,J105/CalsPerPound/2.2),"") -> 14.1 | L105: =IFERROR(WeightToLoseGain-K105,"") -> 5.93 | M105: =IFERROR(IF(B104<>"",L105/(WeightToLoseGain),""),"") -> 30%
B106: 2019-06-09 | D106: 94 | E106: 81.8 | F106: =IFERROR(RunningBMR,"") -> 1866 | G106: =IFERROR(IF(K105>0,F105*ActivityFactor+IF(WeightGoal="維持",0,IF(WeightGoal="減量",-500,IF(WeightGoal="増量",500))),""),"") -> 3049 | H106: =IFERROR(F106*(ActivityFactor),"") -> 3546 | I106: =IFERROR(IF(WeightGoal="増量",G106-H106,H106-G106),"") -> 496 | J106: 107843 | K106: =IFERROR(IF(Standard,J106/CalsPerPound,J106/CalsPerPound/2.2),"") -> 14.0 | L106: =IFERROR(WeightToLoseGain-K106,"") -> 5.99 | M106: =IFERROR(IF(B105<>"",L106/(WeightToLoseGain),""),"") -> 30%
B107: 2019-06-10 | D107: 95 | E107: 81.7 | F107: =IFERROR(RunningBMR,"") -> 1864 | G107: =IFERROR(IF(K106>0,F106*ActivityFactor+IF(WeightGoal="維持",0,IF(WeightGoal="減量",-500,IF(WeightGoal="増量",500))),""),"") -> 3046 | H107: =IFERROR(F107*(ActivityFactor),"") -> 3542 | I107: =IFERROR(IF(WeightGoal="増量",G107-H107,H107-G107),"") -> 496 | J107: 107347 | K107: =IFERROR(IF(Standard,J107/CalsPerPound,J107/CalsPerPound/2.2),"") -> 13.9 | L107: =IFERROR(WeightToLoseGain-K107,"") -> 6.06 | M107: =IFERROR(IF(B106<>"",L107/(WeightToLoseGain),""),"") -> 30%
B108: 2019-06-11 | D108: 96 | E108: 81.5 | F108: =IFERROR(RunningBMR,"") -> 1862 | G108: =IFERROR(IF(K107>0,F107*ActivityFactor+IF(WeightGoal="維持",0,IF(WeightGoal="減量",-500,IF(WeightGoal="増量",500))),""),"") -> 3042 | H108: =IFERROR(F108*(ActivityFactor),"") -> 3538 | I108: =IFERROR(IF(WeightGoal="増量",G108-H108,H108-G108),"") -> 496 | J108: 106851 | K108: =IFERROR(IF(Standard,J108/CalsPerPound,J108/CalsPerPound/2.2),"") -> 13.9 | L108: =IFERROR(WeightToLoseGain-K108,"") -> 6.12 | M108: =IFERROR(IF(B107<>"",L108/(WeightToLoseGain),""),"") -> 31%
B109: 2019-06-12 | D109: 97 | E109: 81.4 | F109: =IFERROR(RunningBMR,"") -> 1860 | G109: =IFERROR(IF(K108>0,F108*ActivityFactor+IF(WeightGoal="維持",0,IF(WeightGoal="減量",-500,IF(WeightGoal="増量",500))),""),"") -> 3038 | H109: =IFERROR(F109*(ActivityFactor),"") -> 3535 | I109: =IFERROR(IF(WeightGoal="増量",G109-H109,H109-G109),"") -> 496 | J109: 106354 | K109: =IFERROR(IF(Standard,J109/CalsPerPound,J109/CalsPerPound/2.2),"") -> 13.8 | L109: =IFERROR(WeightToLoseGain-K109,"") -> 6.19 | M109: =IFERROR(IF(B108<>"",L109/(WeightToLoseGain),""),"") -> 31%
B110: 2019-06-13 | D110: 98 | E110: 81.2 | F110: =IFERROR(RunningBMR,"") -> 1858 | G110: =IFERROR(IF(K109>0,F109*ActivityFactor+IF(WeightGoal="維持",0,IF(WeightGoal="減量",-500,IF(WeightGoal="増量",500))),""),"") -> 3035 | H110: =IFERROR(F110*(ActivityFactor),"") -> 3531 | I110: =IFERROR(IF(WeightGoal="増量",G110-H110,H110-G110),"") -> 496 | J110: 105858 | K110: =IFERROR(IF(Standard,J110/CalsPerPound,J110/CalsPerPound/2.2),"") -> 13.7 | L110: =IFERROR(WeightToLoseGain-K110,"") -> 6.25 | M110: =IFERROR(IF(B109<>"",L110/(WeightToLoseGain),""),"") -> 31%
B111: 2019-06-14 | C111: 15 | D111: 99 | E111: 81.1 | F111: =IFERROR(RunningBMR,"") -> 1856 | G111: =IFERROR(IF(K110>0,F110*ActivityFactor+IF(WeightGoal="維持",0,IF(WeightGoal="減量",-500,IF(WeightGoal="増量",500))),""),"") -> 3031 | H111: =IFERROR(F111*(ActivityFactor),"") -> 3527 | I111: =IFERROR(IF(WeightGoal="増量",G111-H111,H111-G111),"") -> 496 | J111: 105362 | K111: =IFERROR(IF(Standard,J111/CalsPerPound,J111/CalsPerPound/2.2),"") -> 13.7 | L111: =IFERROR(WeightToLoseGain-K111,"") -> 6.32 | M111: =IFERROR(IF(B110<>"",L111/(WeightToLoseGain),""),"") -> 32%
B112: 2019-06-15 | D112: 100 | E112: 81.0 | F112: =IFERROR(RunningBMR,"") -> 1855 | G112: =IFERROR(IF(K111>0,F111*ActivityFactor+IF(WeightGoal="維持",0,IF(WeightGoal="減量",-500,IF(WeightGoal="増量",500))),""),"") -> 3027 | H112: =IFERROR(F112*(ActivityFactor),"") -> 3524 | I112: =IFERROR(IF(WeightGoal="増量",G112-H112,H112-G112),"") -> 496 | J112: 104865 | K112: =IFERROR(IF(Standard,J112/CalsPerPound,J112/CalsPerPound/2.2),"") -> 13.6 | L112: =IFERROR(WeightToLoseGain-K112,"") -> 6.38 | M112: =IFERROR(IF(B111<>"",L112/(WeightToLoseGain),""),"") -> 32%
B113: 2019-06-16 | D113: 101 | E113: 80.8 | F113: =IFERROR(RunningBMR,"") -> 1853 | G113: =IFERROR(IF(K112>0,F112*ActivityFactor+IF(WeightGoal="維持",0,IF(WeightGoal="減量",-500,IF(WeightGoal="増量",500))),""),"") -> 3024 | H113: =IFERROR(F113*(ActivityFactor),"") -> 3520 | I113: =IFERROR(IF(WeightGoal="増量",G113-H113,H113-G113),"") -> 496 | J113: 104369 | K113: =IFERROR(IF(Standard,J113/CalsPerPound,J113/CalsPerPound/2.2),"") -> 13.6 | L113: =IFERROR(WeightToLoseGain-K113,"") -> 6.45 | M113: =IFERROR(IF(B112<>"",L113/(WeightToLoseGain),""),"") -> 32%
B114: 2019-06-17 | D114: 102 | E114: 80.7 | F114: =IFERROR(RunningBMR,"") -> 1851 | G114: =IFERROR(IF(K113>0,F113*ActivityFactor+IF(WeightGoal="維持",0,IF(WeightGoal="減量",-500,IF(WeightGoal="増量",500))),""),"") -> 3020 | H114: =IFERROR(F114*(ActivityFactor),"") -> 3516 | I114: =IFERROR(IF(WeightGoal="増量",G114-H114,H114-G114),"") -> 496 | J114: 103873 | K114: =IFERROR(IF(Standard,J114/CalsPerPound,J114/CalsPerPound/2.2),"") -> 13.5 | L114: =IFERROR(WeightToLoseGain-K114,"") -> 6.51 | M114: =IFERROR(IF(B113<>"",L114/(WeightToLoseGain),""),"") -> 33%
B115: 2019-06-18 | D115: 103 | E115: 80.5 | F115: =IFERROR(RunningBMR,"") -> 1849 | G115: =IFERROR(IF(K114>0,F114*ActivityFactor+IF(WeightGoal="維持",0,IF(WeightGoal="減量",-500,IF(WeightGoal="増量",500))),""),"") -> 3016 | H115: =IFERROR(F115*(ActivityFactor),"") -> 3512 | I115: =IFERROR(IF(WeightGoal="増量",G115-H115,H115-G115),"") -> 496 | J115: 103377 | K115: =IFERROR(IF(Standard,J115/CalsPerPound,J115/CalsPerPound/2.2),"") -> 13.4 | L115: =IFERROR(WeightToLoseGain-K115,"") -> 6.57 | M115: =IFERROR(IF(B114<>"",L115/(WeightToLoseGain),""),"") -> 33%
B116: 2019-06-19 | D116: 104 | E116: 80.4 | F116: =IFERROR(RunningBMR,"") -> 1847 | G116: =IFERROR(IF(K115>0,F115*ActivityFactor+IF(WeightGoal="維持",0,IF(WeightGoal="減量",-500,IF(WeightGoal="増量",500))),""),"") -> 3012 | H116: =IFERROR(F116*(ActivityFactor),"") -> 3509 | I116: =IFERROR(IF(WeightGoal="増量",G116-H116,H116-G116),"") -> 496 | J116: 102880 | K116: =IFERROR(IF(Standard,J116/CalsPerPound,J116/CalsPerPound/2.2),"") -> 13.4 | L116: =IFERROR(WeightToLoseGain-K116,"") -> 6.64 | M116: =IFERROR(IF(B115<>"",L116/(WeightToLoseGain),""),"") -> 33%
B117: 2019-06-20 | D117: 105 | E117: 80.3 | F117: =IFERROR(RunningBMR,"") -> 1845 | G117: =IFERROR(IF(K116>0,F116*ActivityFactor+IF(WeightGoal="維持",0,IF(WeightGoal="減量",-500,IF(WeightGoal="増量",500))),""),"") -> 3009 | H117: =IFERROR(F117*(ActivityFactor),"") -> 3505 | I117: =IFERROR(IF(WeightGoal="増量",G117-H117,H117-G117),"") -> 496 | J117: 102384 | K117: =IFERROR(IF(Standard,J117/CalsPerPound,J117/CalsPerPound/2.2),"") -> 13.3 | L117: =IFERROR(WeightToLoseGain-K117,"") -> 6.70 | M117: =IFERROR(IF(B116<>"",L117/(WeightToLoseGain),""),"") -> 34%
B118: 2019-06-21 | C118: 16 | D118: 106 | E118: 80.1 | F118: =IFERROR(RunningBMR,"") -> 1843 | G118: =IFERROR(IF(K117>0,F117*ActivityFactor+IF(WeightGoal="維持",0,IF(WeightGoal="減量",-500,IF(WeightGoal="増量",500))),""),"") -> 3005 | H118: =IFERROR(F118*(ActivityFactor),"") -> 3501 | I118: =IFERROR(IF(WeightGoal="増量",G118-H118,H118-G118),"") -> 496 | J118: 101888 | K118: =IFERROR(IF(Standard,J118/CalsPerPound,J118/CalsPerPound/2.2),"") -> 13.2 | L118: =IFERROR(WeightToLoseGain-K118,"") -> 6.77 | M118: =IFERROR(IF(B117<>"",L118/(WeightToLoseGain),""),"") -> 34%
B119: 2019-06-22 | D119: 107 | E119: 80.0 | F119: =IFERROR(RunningBMR,"") -> 1841 | G119: =IFERROR(IF(K118>0,F118*ActivityFactor+IF(WeightGoal="維持",0,IF(WeightGoal="減量",-500,IF(WeightGoal="増量",500))),""),"") -> 3001 | H119: =IFERROR(F119*(ActivityFactor),"") -> 3498 | I119: =IFERROR(IF(WeightGoal="増量",G119-H119,H119-G119),"") -> 496 | J119: 101391 | K119: =IFERROR(IF(Standard,J119/CalsPerPound,J119/CalsPerPound/2.2),"") -> 13.2 | L119: =IFERROR(WeightToLoseGain-K119,"") -> 6.83 | M119: =IFERROR(IF(B118<>"",L119/(WeightToLoseGain),""),"") -> 34%
B120: 2019-06-23 | D120: 108 | E120: 79.8 | F120: =IFERROR(RunningBMR,"") -> 1839 | G120: =IFERROR(IF(K119>0,F119*ActivityFactor+IF(WeightGoal="維持",0,IF(WeightGoal="減量",-500,IF(WeightGoal="増量",500))),""),"") -> 2998 | H120: =IFERROR(F120*(ActivityFactor),"") -> 3494 | I120: =IFERROR(IF(WeightGoal="増量",G120-H120,H120-G120),"") -> 496 | J120: 100895 | K120: =IFERROR(IF(Standard,J120/CalsPerPound,J120/CalsPerPound/2.2),"") -> 13.1 | L120: =IFERROR(WeightToLoseGain-K120,"") -> 6.90 | M120: =IFERROR(IF(B119<>"",L120/(WeightToLoseGain),""),"") -> 34%
B121: 2019-06-24 | D121: 109 | E121: 79.7 | F121: =IFERROR(RunningBMR,"") -> 1837 | G121: =IFERROR(IF(K120>0,F120*ActivityFactor+IF(WeightGoal="維持",0,IF(WeightGoal="減量",-500,IF(WeightGoal="増量",500))),""),"") -> 2994 | H121: =IFERROR(F121*(ActivityFactor),"") -> 3490 | I121: =IFERROR(IF(WeightGoal="増量",G121-H121,H121-G121),"") -> 496 | J121: 100399 | K121: =IFERROR(IF(Standard,J121/CalsPerPound,J121/CalsPerPound/2.2),"") -> 13.0 | L121: =IFERROR(WeightToLoseGain-K121,"") -> 6.96 | M121: =IFERROR(IF(B120<>"",L121/(WeightToLoseGain),""),"") -> 35%
B122: 2019-06-25 | D122: 110 | E122: 79.5 | F122: =IFERROR(RunningBMR,"") -> 1835 | G122: =IFERROR(IF(K121>0,F121*ActivityFactor+IF(WeightGoal="維持",0,IF(WeightGoal="減量",-500,IF(WeightGoal="増量",500))),""),"") -> 2990 | H122: =IFERROR(F122*(ActivityFactor),"") -> 3487 | I122: =IFERROR(IF(WeightGoal="増量",G122-H122,H122-G122),"") -> 496 | J122: 99902 | K122: =IFERROR(IF(Standard,J122/CalsPerPound,J122/CalsPerPound/2.2),"") -> 13.0 | L122: =IFERROR(WeightToLoseGain-K122,"") -> 7.03 | M122: =IFERROR(IF(B121<>"",L122/(WeightToLoseGain),""),"") -> 35%
B123: 2019-06-26 | D123: 111 | E123: 79.4 | F123: =IFERROR(RunningBMR,"") -> 1833 | G123: =IFERROR(IF(K122>0,F122*ActivityFactor+IF(WeightGoal="維持",0,IF(WeightGoal="減量",-500,IF(WeightGoal="増量",500))),""),"") -> 2987 | H123: =IFERROR(F123*(ActivityFactor),"") -> 3483 | I123: =IFERROR(IF(WeightGoal="増量",G123-H123,H123-G123),"") -> 496 | J123: 99406 | K123: =IFERROR(IF(Standard,J123/CalsPerPound,J123/CalsPerPound/2.2),"") -> 12.9 | L123: =IFERROR(WeightToLoseGain-K123,"") -> 7.09 | M123: =IFERROR(IF(B122<>"",L123/(WeightToLoseGain),""),"") -> 35%
B124: 2019-06-27 | D124: 112 | E124: 79.3 | F124: =IFERROR(RunningBMR,"") -> 1831 | G124: =IFERROR(IF(K123>0,F123*ActivityFactor+IF(WeightGoal="維持",0,IF(WeightGoal="減量",-500,IF(WeightGoal="増量",500))),""),"") -> 2983 | H124: =IFERROR(F124*(ActivityFactor),"") -> 3479 | I124: =IFERROR(IF(WeightGoal="増量",G124-H124,H124-G124),"") -> 496 | J124: 98910 | K124: =IFERROR(IF(Standard,J124/CalsPerPound,J124/CalsPerPound/2.2),"") -> 12.8 | L124: =IFERROR(WeightToLoseGain-K124,"") -> 7.15 | M124: =IFERROR(IF(B123<>"",L124/(WeightToLoseGain),""),"") -> 36%
B125: 2019-06-28 | C125: 17 | D125: 113 | E125: 79.1 | F125: =IFERROR(RunningBMR,"") -> 1829 | G125: =IFERROR(IF(K124>0,F124*ActivityFactor+IF(WeightGoal="維持",0,IF(WeightGoal="減量",-500,IF(WeightGoal="増量",500))),""),"") -> 2979 | H125: =IFERROR(F125*(ActivityFactor),"") -> 3476 | I125: =IFERROR(IF(WeightGoal="増量",G125-H125,H125-G125),"") -> 496 | J125: 98413 | K125: =IFERROR(IF(Standard,J125/CalsPerPound,J125/CalsPerPound/2.2),"") -> 12.8 | L125: =IFERROR(WeightToLoseGain-K125,"") -> 7.22 | M125: =IFERROR(IF(B124<>"",L125/(WeightToLoseGain),""),"") -> 36%
B126: 2019-06-29 | D126: 114 | E126: 79.0 | F126: =IFERROR(RunningBMR,"") -> 1827 | G126: =IFERROR(IF(K125>0,F125*ActivityFactor+IF(WeightGoal="維持",0,IF(WeightGoal="減量",-500,IF(WeightGoal="増量",500))),""),"") -> 2976 | H126: =IFERROR(F126*(ActivityFactor),"") -> 3472 | I126: =IFERROR(IF(WeightGoal="増量",G126-H126,H126-G126),"") -> 496 | J126: 97917 | K126: =IFERROR(IF(Standard,J126/CalsPerPound,J126/CalsPerPound/2.2),"") -> 12.7 | L126: =IFERROR(WeightToLoseGain-K126,"") -> 7.28 | M126: =IFERROR(IF(B125<>"",L126/(WeightToLoseGain),""),"") -> 36%
B127: 2019-06-30 | D127: 115 | E127: 78.8 | F127: =IFERROR(RunningBMR,"") -> 1825 | G127: =IFERROR(IF(K126>0,F126*ActivityFactor+IF(WeightGoal="維持",0,IF(WeightGoal="減量",-500,IF(WeightGoal="増量",500))),""),"") -> 2972 | H127: =IFERROR(F127*(ActivityFactor),"") -> 3468 | I127: =IFERROR(IF(WeightGoal="増量",G127-H127,H127-G127),"") -> 496 | J127: 97421 | K127: =IFERROR(IF(Standard,J127/CalsPerPound,J127/CalsPerPound/2.2),"") -> 12.7 | L127: =IFERROR(WeightToLoseGain-K127,"") -> 7.35 | M127: =IFERROR(IF(B126<>"",L127/(WeightToLoseGain),""),"") -> 37%
B128: 2019-07-01 | D128: 116 | E128: 78.7 | F128: =IFERROR(RunningBMR,"") -> 1823 | G128: =IFERROR(IF(K127>0,F127*ActivityFactor+IF(WeightGoal="維持",0,IF(WeightGoal="減量",-500,IF(WeightGoal="増量",500))),""),"") -> 2968 | H128: =IFERROR(F128*(ActivityFactor),"") -> 3465 | I128: =IFERROR(IF(WeightGoal="増量",G128-H128,H128-G128),"") -> 496 | J128: 96925 | K128: =IFERROR(IF(Standard,J128/CalsPerPound,J128/CalsPerPound/2.2),"") -> 12.6 | L128: =IFERROR(WeightToLoseGain-K128,"") -> 7.41 | M128: =IFERROR(IF(B127<>"",L128/(WeightToLoseGain),""),"") -> 37%
B129: 2019-07-02 | D129: 117 | E129: 78.5 | F129: =IFERROR(RunningBMR,"") -> 1821 | G129: =IFERROR(IF(K128>0,F128*ActivityFactor+IF(WeightGoal="維持",0,IF(WeightGoal="減量",-500,IF(WeightGoal="増量",500))),""),"") -> 2965 | H129: =IFERROR(F129*(ActivityFactor),"") -> 3461 | I129: =IFERROR(IF(WeightGoal="増量",G129-H129,H129-G129),"") -> 496 | J129: 96428 | K129: =IFERROR(IF(Standard,J129/CalsPerPound,J129/CalsPerPound/2.2),"") -> 12.5 | L129: =IFERROR(WeightToLoseGain-K129,"") -> 7.48 | M129: =IFERROR(IF(B128<>"",L129/(WeightToLoseGain),""),"") -> 37%
B130: 2019-07-03 | D130: 118 | E130: 78.4 | F130: =IFERROR(RunningBMR,"") -> 1820 | G130: =IFERROR(IF(K129>0,F129*ActivityFactor+IF(WeightGoal="維持",0,IF(WeightGoal="減量",-500,IF(WeightGoal="増量",500))),""),"") -> 2961 | H130: =IFERROR(F130*(ActivityFactor),"") -> 3457 | I130: =IFERROR(IF(WeightGoal="増量",G130-H130,H130-G130),"") -> 496 | J130: 95932 | K130: =IFERROR(IF(Standard,J130/CalsPerPound,J130/CalsPerPound/2.2),"") -> 12.5 | L130: =IFERROR(WeightToLoseGain-K130,"") -> 7.54 | M130: =IFERROR(IF(B129<>"",L130/(WeightToLoseGain),""),"") -> 38%
B131: 2019-07-04 | D131: 119 | E131: 78.3 | F131: =IFERROR(RunningBMR,"") -> 1818 | G131: =IFERROR(IF(K130>0,F130*ActivityFactor+IF(WeightGoal="維持",0,IF(WeightGoal="減量",-500,IF(WeightGoal="増量",500))),""),"") -> 2957 | H131: =IFERROR(F131*(ActivityFactor),"") -> 3453 | I131: =IFERROR(IF(WeightGoal="増量",G131-H131,H131-G131),"") -> 496 | J131: 95436 | K131: =IFERROR(IF(Standard,J131/CalsPerPound,J131/CalsPerPound/2.2),"") -> 12.4 | L131: =IFERROR(WeightToLoseGain-K131,"") -> 7.61 | M131: =IFERROR(IF(B130<>"",L131/(WeightToLoseGain),""),"") -> 38%
B132: 2019-07-05 | C132: 18 | D132: 120 | E132: 78.1 | F132: =IFERROR(RunningBMR,"") -> 1816 | G132: =IFERROR(IF(K131>0,F131*ActivityFactor+IF(WeightGoal="維持",0,IF(WeightGoal="減量",-500,IF(WeightGoal="増量",500))),""),"") -> 2953 | H132: =IFERROR(F132*(ActivityFactor),"") -> 3450 | I132: =IFERROR(IF(WeightGoal="増量",G132-H132,H132-G132),"") -> 496 | J132: 94939 | K132: =IFERROR(IF(Standard,J132/CalsPerPound,J132/CalsPerPound/2.2),"") -> 12.3 | L132: =IFERROR(WeightToLoseGain-K132,"") -> 7.67 | M132: =IFERROR(IF(B131<>"",L132/(WeightToLoseGain),""),"") -> 38%
B133: 2019-07-06 | D133: 121 | E133: 78.0 | F133: =IFERROR(RunningBMR,"") -> 1814 | G133: =IFERROR(IF(K132>0,F132*ActivityFactor+IF(WeightGoal="維持",0,IF(WeightGoal="減量",-500,IF(WeightGoal="増量",500))),""),"") -> 2950 | H133: =IFERROR(F133*(ActivityFactor),"") -> 3446 | I133: =IFERROR(IF(WeightGoal="増量",G133-H133,H133-G133),"") -> 496 | J133: 94443 | K133: =IFERROR(IF(Standard,J133/CalsPerPound,J133/CalsPerPound/2.2),"") -> 12.3 | L133: =IFERROR(WeightToLoseGain-K133,"") -> 7.73 | M133: =IFERROR(IF(B132<>"",L133/(WeightToLoseGain),""),"") -> 39%
B134: 2019-07-07 | D134: 122 | E134: 77.8 | F134: =IFERROR(RunningBMR,"") -> 1812 | G134: =IFERROR(IF(K133>0,F133*ActivityFactor+IF(WeightGoal="維持",0,IF(WeightGoal="減量",-500,IF(WeightGoal="増量",500))),""),"") -> 2946 | H134: =IFERROR(F134*(ActivityFactor),"") -> 3442 | I134: =IFERROR(IF(WeightGoal="増量",G134-H134,H134-G134),"") -> 496 | J134: 93947 | K134: =IFERROR(IF(Standard,J134/CalsPerPound,J134/CalsPerPound/2.2),"") -> 12.2 | L134: =IFERROR(WeightToLoseGain-K134,"") -> 7.80 | M134: =IFERROR(IF(B133<>"",L134/(WeightToLoseGain),""),"") -> 39%
B135: 2019-07-08 | D135: 123 | E135: 77.7 | F135: =IFERROR(RunningBMR,"") -> 1810 | G135: =IFERROR(IF(K134>0,F134*ActivityFactor+IF(WeightGoal="維持",0,IF(WeightGoal="減量",-500,IF(WeightGoal="増量",500))),""),"") -> 2942 | H135: =IFERROR(F135*(ActivityFactor),"") -> 3439 | I135: =IFERROR(IF(WeightGoal="増量",G135-H135,H135-G135),"") -> 496 | J135: 93450 | K135: =IFERROR(IF(Standard,J135/CalsPerPound,J135/CalsPerPound/2.2),"") -> 12.1 | L135: =IFERROR(WeightToLoseGain-K135,"") -> 7.86 | M135: =IFERROR(IF(B134<>"",L135/(WeightToLoseGain),""),"") -> 39%
B136: 2019-07-09 | D136: 124 | E136: 77.6 | F136: =IFERROR(RunningBMR,"") -> 1808 | G136: =IFERROR(IF(K135>0,F135*ActivityFactor+IF(WeightGoal="維持",0,IF(WeightGoal="減量",-500,IF(WeightGoal="増量",500))),""),"") -> 2939 | H136: =IFERROR(F136*(ActivityFactor),"") -> 3435 | I136: =IFERROR(IF(WeightGoal="増量",G136-H136,H136-G136),"") -> 496 | J136: 92954 | K136: =IFERROR(IF(Standard,J136/CalsPerPound,J136/CalsPerPound/2.2),"") -> 12.1 | L136: =IFERROR(WeightToLoseGain-K136,"") -> 7.93 | M136: =IFERROR(IF(B135<>"",L136/(WeightToLoseGain),""),"") -> 40%
B137: 2019-07-10 | D137: 125 | E137: 77.4 | F137: =IFERROR(RunningBMR,"") -> 1806 | G137: =IFERROR(IF(K136>0,F136*ActivityFactor+IF(WeightGoal="維持",0,IF(WeightGoal="減量",-500,IF(WeightGoal="増量",500))),""),"") -> 2935 | H137: =IFERROR(F137*(ActivityFactor),"") -> 3431 | I137: =IFERROR(IF(WeightGoal="増量",G137-H137,H137-G137),"") -> 496 | J137: 92458 | K137: =IFERROR(IF(Standard,J137/CalsPerPound,J137/CalsPerPound/2.2),"") -> 12.0 | L137: =IFERROR(WeightToLoseGain-K137,"") -> 7.99 | M137: =IFERROR(IF(B136<>"",L137/(WeightToLoseGain),""),"") -> 40%
B138: 2019-07-11 | D138: 126 | E138: 77.3 | F138: =IFERROR(RunningBMR,"") -> 1804 | G138: =IFERROR(IF(K137>0,F137*ActivityFactor+IF(WeightGoal="維持",0,IF(WeightGoal="減量",-500,IF(WeightGoal="増量",500))),""),"") -> 2931 | H138: =IFERROR(F138*(ActivityFactor),"") -> 3428 | I138: =IFERROR(IF(WeightGoal="増量",G138-H138,H138-G138),"") -> 496 | J138: 91961 | K138: =IFERROR(IF(Standard,J138/CalsPerPound,J138/CalsPerPound/2.2),"") -> 11.9 | L138: =IFERROR(WeightToLoseGain-K138,"") -> 8.06 | M138: =IFERROR(IF(B137<>"",L138/(WeightToLoseGain),""),"") -> 40%
B139: 2019-07-12 | C139: 19 | D139: 127 | E139: 77.1 | F139: =IFERROR(RunningBMR,"") -> 1802 | G139: =IFERROR(IF(K138>0,F138*ActivityFactor+IF(WeightGoal="維持",0,IF(WeightGoal="減量",-500,IF(WeightGoal="増量",500))),""),"") -> 2928 | H139: =IFERROR(F139*(ActivityFactor),"") -> 3424 | I139: =IFERROR(IF(WeightGoal="増量",G139-H139,H139-G139),"") -> 496 | J139: 91465 | K139: =IFERROR(IF(Standard,J139/CalsPerPound,J139/CalsPerPound/2.2),"") -> 11.9 | L139: =IFERROR(WeightToLoseGain-K139,"") -> 8.12 | M139: =IFERROR(IF(B138<>"",L139/(WeightToLoseGain),""),"") -> 41%
B140: 2019-07-13 | D140: 128 | E140: 77.0 | F140: =IFERROR(RunningBMR,"") -> 1800 | G140: =IFERROR(IF(K139>0,F139*ActivityFactor+IF(WeightGoal="維持",0,IF(WeightGoal="減量",-500,IF(WeightGoal="増量",500))),""),"") -> 2924 | H140: =IFERROR(F140*(ActivityFactor),"") -> 3420 | I140: =IFERROR(IF(WeightGoal="増量",G140-H140,H140-G140),"") -> 496 | J140: 90969 | K140: =IFERROR(IF(Standard,J140/CalsPerPound,J140/CalsPerPound/2.2),"") -> 11.8 | L140: =IFERROR(WeightToLoseGain-K140,"") -> 8.19 | M140: =IFERROR(IF(B139<>"",L140/(WeightToLoseGain),""),"") -> 41%
B141: 2019-07-14 | D141: 129 | E141: 76.8 | F141: =IFERROR(RunningBMR,"") -> 1798 | G141: =IFERROR(IF(K140>0,F140*ActivityFactor+IF(WeightGoal="維持",0,IF(WeightGoal="減量",-500,IF(WeightGoal="増量",500))),""),"") -> 2920 | H141: =IFERROR(F141*(ActivityFactor),"") -> 3417 | I141: =IFERROR(IF(WeightGoal="増量",G141-H141,H141-G141),"") -> 496 | J141: 90472 | K141: =IFERROR(IF(Standard,J141/CalsPerPound,J141/CalsPerPound/2.2),"") -> 11.7 | L141: =IFERROR(WeightToLoseGain-K141,"") -> 8.25 | M141: =IFERROR(IF(B140<>"",L141/(WeightToLoseGain),""),"") -> 41%
B142: =IFERROR(IF(K141>0,B141+1,""),"") -> 2019-07-15 | D142: =IFERROR(IF(K141>0,D141+1,""),"") -> 130 | E142: =IFERROR(IF($D142<>"",E141-(I141/CalsPerPound),""),"") -> 76.7 | F142: =IFERROR(RunningBMR,"") -> 1796 | G142: =IFERROR(IF(K141>0,F141*ActivityFactor+IF(WeightGoal="維持",0,IF(WeightGoal="減量",-500,IF(WeightGoal="増量",500))),""),"") -> 2917 | H142: =IFERROR(F142*(ActivityFactor),"") -> 3413 | I142: =IFERROR(IF(WeightGoal="増量",G142-H142,H142-G142),"") -> 496 | J142: 89976 | K142: =IFERROR(IF(Standard,J142/CalsPerPound,J142/CalsPerPound/2.2),"") -> 11.7 | L142: =IFERROR(WeightToLoseGain-K142,"") -> 8.31 | M142: =IFERROR(IF(B141<>"",L142/(WeightToLoseGain),""),"") -> 42%
B143: 2019-07-16 | C143: =IFERROR(IF(D143<>"",IF(MOD(D143,7)=1,(D142/7)+1,""),""),"") ->  | D143: 131 | E143: 76.6 | F143: =IFERROR(RunningBMR,"") -> 1794 | G143: =IFERROR(IF(K142>0,F142*ActivityFactor+IF(WeightGoal="維持",0,IF(WeightGoal="減量",-500,IF(WeightGoal="増量",500))),""),"") -> 2913 | H143: =IFERROR(F143*(ActivityFactor),"") -> 3409 | I143: =IFERROR(IF(WeightGoal="増量",G143-H143,H143-G143),"") -> 496 | J143: =IFERROR(J142-I143,"") -> 89480 | K143: =IFERROR(IF(Standard,J143/CalsPerPound,J143/CalsPerPound/2.2),"") -> 11.6 | L143: =IFERROR(WeightToLoseGain-K143,"") -> 8.38 | M143: =IFERROR(IF(B142<>"",L143/(WeightToLoseGain),""),"") -> 42%
B144: 2019-07-17 | D144: 132 | E144: 76.4 | F144: =IFERROR(RunningBMR,"") -> 1792 | G144: =IFERROR(IF(K143>0,F143*ActivityFactor+IF(WeightGoal="維持",0,IF(WeightGoal="減量",-500,IF(WeightGoal="増量",500))),""),"") -> 2909 | H144: =IFERROR(F144*(ActivityFactor),"") -> 3405 | I144: =IFERROR(IF(WeightGoal="増量",G144-H144,H144-G144),"") -> 496 | J144: 88984 | K144: =IFERROR(IF(Standard,J144/CalsPerPound,J144/CalsPerPound/2.2),"") -> 11.6 | L144: =IFERROR(WeightToLoseGain-K144,"") -> 8.44 | M144: =IFERROR(IF(B143<>"",L144/(WeightToLoseGain),""),"") -> 42%
B145: 2019-07-18 | D145: 133 | E145: 76.3 | F145: =IFERROR(RunningBMR,"") -> 1790 | G145: =IFERROR(IF(K144>0,F144*ActivityFactor+IF(WeightGoal="維持",0,IF(WeightGoal="減量",-500,IF(WeightGoal="増量",500))),""),"") -> 2905 | H145: =IFERROR(F145*(ActivityFactor),"") -> 3402 | I145: =IFERROR(IF(WeightGoal="増量",G145-H145,H145-G145),"") -> 496 | J145: 88487 | K145: =IFERROR(IF(Standard,J145/CalsPerPound,J145/CalsPerPound/2.2),"") -> 11.5 | L145: =IFERROR(WeightToLoseGain-K145,"") -> 8.51 | M145: =IFERROR(IF(B144<>"",L145/(WeightToLoseGain),""),"") -> 43%
B146: 2019-07-19 | C146: 20 | D146: 134 | E146: 76.1 | F146: =IFERROR(RunningBMR,"") -> 1788 | G146: =IFERROR(IF(K145>0,F145*ActivityFactor+IF(WeightGoal="維持",0,IF(WeightGoal="減量",-500,IF(WeightGoal="増量",500))),""),"") -> 2902 | H146: =IFERROR(F146*(ActivityFactor),"") -> 3398 | I146: =IFERROR(IF(WeightGoal="増量",G146-H146,H146-G146),"") -> 496 | J146: 87991 | K146: =IFERROR(IF(Standard,J146/CalsPerPound,J146/CalsPerPound/2.2),"") -> 11.4 | L146: =IFERROR(WeightToLoseGain-K146,"") -> 8.57 | M146: =IFERROR(IF(B145<>"",L146/(WeightToLoseGain),""),"") -> 43%
B147: 2019-07-20 | D147: 135 | E147: 76.0 | F147: =IFERROR(RunningBMR,"") -> 1787 | G147: =IFERROR(IF(K146>0,F146*ActivityFactor+IF(WeightGoal="維持",0,IF(WeightGoal="減量",-500,IF(WeightGoal="増量",500))),""),"") -> 2898 | H147: =IFERROR(F147*(ActivityFactor),"") -> 3394 | I147: =IFERROR(IF(WeightGoal="増量",G147-H147,H147-G147),"") -> 496 | J147: 87495 | K147: =IFERROR(IF(Standard,J147/CalsPerPound,J147/CalsPerPound/2.2),"") -> 11.4 | L147: =IFERROR(WeightToLoseGain-K147,"") -> 8.64 | M147: =IFERROR(IF(B146<>"",L147/(WeightToLoseGain),""),"") -> 43%
B148: 2019-07-21 | D148: 136 | E148: 75.9 | F148: =IFERROR(RunningBMR,"") -> 1785 | G148: =IFERROR(IF(K147>0,F147*ActivityFactor+IF(WeightGoal="維持",0,IF(WeightGoal="減量",-500,IF(WeightGoal="増量",500))),""),"") -> 2894 | H148: =IFERROR(F148*(ActivityFactor),"") -> 3391 | I148: =IFERROR(IF(WeightGoal="増量",G148-H148,H148-G148),"") -> 496 | J148: 86998 | K148: =IFERROR(IF(Standard,J148/CalsPerPound,J148/CalsPerPound/2.2),"") -> 11.3 | L148: =IFERROR(WeightToLoseGain-K148,"") -> 8.70 | M148: =IFERROR(IF(B147<>"",L148/(WeightToLoseGain),""),"") -> 44%
B149: 2019-07-22 | D149: 137 | E149: 75.7 | F149: =IFERROR(RunningBMR,"") -> 1783 | G149: =IFERROR(IF(K148>0,F148*ActivityFactor+IF(WeightGoal="維持",0,IF(WeightGoal="減量",-500,IF(WeightGoal="増量",500))),""),"") -> 2891 | H149: =IFERROR(F149*(ActivityFactor),"") -> 3387 | I149: =IFERROR(IF(WeightGoal="増量",G149-H149,H149-G149),"") -> 496 | J149: 86502 | K149: =IFERROR(IF(Standard,J149/CalsPerPound,J149/CalsPerPound/2.2),"") -> 11.2 | L149: =IFERROR(WeightToLoseGain-K149,"") -> 8.77 | M149: =IFERROR(IF(B148<>"",L149/(WeightToLoseGain),""),"") -> 44%
B150: 2019-07-23 | D150: 138 | E150: 75.6 | F150: =IFERROR(RunningBMR,"") -> 1781 | G150: =IFERROR(IF(K149>0,F149*ActivityFactor+IF(WeightGoal="維持",0,IF(WeightGoal="減量",-500,IF(WeightGoal="増量",500))),""),"") -> 2887 | H150: =IFERROR(F150*(ActivityFactor),"") -> 3383 | I150: =IFERROR(IF(WeightGoal="増量",G150-H150,H150-G150),"") -> 496 | J150: 86006 | K150: =IFERROR(IF(Standard,J150/CalsPerPound,J150/CalsPerPound/2.2),"") -> 11.2 | L150: =IFERROR(WeightToLoseGain-K150,"") -> 8.83 | M150: =IFERROR(IF(B149<>"",L150/(WeightToLoseGain),""),"") -> 44%
B151: 2019-07-24 | D151: 139 | E151: 75.4 | F151: =IFERROR(RunningBMR,"") -> 1779 | G151: =IFERROR(IF(K150>0,F150*ActivityFactor+IF(WeightGoal="維持",0,IF(WeightGoal="減量",-500,IF(WeightGoal="増量",500))),""),"") -> 2883 | H151: =IFERROR(F151*(ActivityFactor),"") -> 3380 | I151: =IFERROR(IF(WeightGoal="増量",G151-H151,H151-G151),"") -> 496 | J151: 85509 | K151: =IFERROR(IF(Standard,J151/CalsPerPound,J151/CalsPerPound/2.2),"") -> 11.1 | L151: =IFERROR(WeightToLoseGain-K151,"") -> 8.89 | M151: =IFERROR(IF(B150<>"",L151/(WeightToLoseGain),""),"") -> 44%
B152: 2019-07-25 | D152: 140 | E152: 75.3 | F152: =IFERROR(RunningBMR,"") -> 1777 | G152: =IFERROR(IF(K151>0,F151*ActivityFactor+IF(WeightGoal="維持",0,IF(WeightGoal="減量",-500,IF(WeightGoal="増量",500))),""),"") -> 2880 | H152: =IFERROR(F152*(ActivityFactor),"") -> 3376 | I152: =IFERROR(IF(WeightGoal="増量",G152-H152,H152-G152),"") -> 496 | J152: 85013 | K152: =IFERROR(IF(Standard,J152/CalsPerPound,J152/CalsPerPound/2.2),"") -> 11.0 | L152: =IFERROR(WeightToLoseGain-K152,"") -> 8.96 | M152: =IFERROR(IF(B151<>"",L152/(WeightToLoseGain),""),"") -> 45%
B153: 2019-07-26 | C153: 21 | D153: 141 | E153: 75.1 | F153: =IFERROR(RunningBMR,"") -> 1775 | G153: =IFERROR(IF(K152>0,F152*ActivityFactor+IF(WeightGoal="維持",0,IF(WeightGoal="減量",-500,IF(WeightGoal="増量",500))),""),"") -> 2876 | H153: =IFERROR(F153*(ActivityFactor),"") -> 3372 | I153: =IFERROR(IF(WeightGoal="増量",G153-H153,H153-G153),"") -> 496 | J153: 84517 | K153: =IFERROR(IF(Standard,J153/CalsPerPound,J153/CalsPerPound/2.2),"") -> 11.0 | L153: =IFERROR(WeightToLoseGain-K153,"") -> 9.02 | M153: =IFERROR(IF(B152<>"",L153/(WeightToLoseGain),""),"") -> 45%
B154: 2019-07-27 | D154: 142 | E154: 75.0 | F154: =IFERROR(RunningBMR,"") -> 1773 | G154: =IFERROR(IF(K153>0,F153*ActivityFactor+IF(WeightGoal="維持",0,IF(WeightGoal="減量",-500,IF(WeightGoal="増量",500))),""),"") -> 2872 | H154: =IFERROR(F154*(ActivityFactor),"") -> 3369 | I154: =IFERROR(IF(WeightGoal="増量",G154-H154,H154-G154),"") -> 496 | J154: 84020 | K154: =IFERROR(IF(Standard,J154/CalsPerPound,J154/CalsPerPound/2.2),"") -> 10.9 | L154: =IFERROR(WeightToLoseGain-K154,"") -> 9.09 | M154: =IFERROR(IF(B153<>"",L154/(WeightToLoseGain),""),"") -> 45%
B155: 2019-07-28 | D155: 143 | E155: 74.9 | F155: =IFERROR(RunningBMR,"") -> 1771 | G155: =IFERROR(IF(K154>0,F154*ActivityFactor+IF(WeightGoal="維持",0,IF(WeightGoal="減量",-500,IF(WeightGoal="増量",500))),""),"") -> 2869 | H155: =IFERROR(F155*(ActivityFactor),"") -> 3365 | I155: =IFERROR(IF(WeightGoal="増量",G155-H155,H155-G155),"") -> 496 | J155: 83524 | K155: =IFERROR(IF(Standard,J155/CalsPerPound,J155/CalsPerPound/2.2),"") -> 10.8 | L155: =IFERROR(WeightToLoseGain-K155,"") -> 9.15 | M155: =IFERROR(IF(B154<>"",L155/(WeightToLoseGain),""),"") -> 46%
B156: 2019-07-29 | D156: 144 | E156: 74.7 | F156: =IFERROR(RunningBMR,"") -> 1769 | G156: =IFERROR(IF(K155>0,F155*ActivityFactor+IF(WeightGoal="維持",0,IF(WeightGoal="減量",-500,IF(WeightGoal="増量",500))),""),"") -> 2865 | H156: =IFERROR(F156*(ActivityFactor),"") -> 3361 | I156: =IFERROR(IF(WeightGoal="増量",G156-H156,H156-G156),"") -> 496 | J156: 83028 | K156: =IFERROR(IF(Standard,J156/CalsPerPound,J156/CalsPerPound/2.2),"") -> 10.8 | L156: =IFERROR(WeightToLoseGain-K156,"") -> 9.22 | M156: =IFERROR(IF(B155<>"",L156/(WeightToLoseGain),""),"") -> 46%
B157: 2019-07-30 | D157: 145 | E157: 74.6 | F157: =IFERROR(RunningBMR,"") -> 1767 | G157: =IFERROR(IF(K156>0,F156*ActivityFactor+IF(WeightGoal="維持",0,IF(WeightGoal="減量",-500,IF(WeightGoal="増量",500))),""),"") -> 2861 | H157: =IFERROR(F157*(ActivityFactor),"") -> 3357 | I157: =IFERROR(IF(WeightGoal="増量",G157-H157,H157-G157),"") -> 496 | J157: 82532 | K157: =IFERROR(IF(Standard,J157/CalsPerPound,J157/CalsPerPound/2.2),"") -> 10.7 | L157: =IFERROR(WeightToLoseGain-K157,"") -> 9.28 | M157: =IFERROR(IF(B156<>"",L157/(WeightToLoseGain),""),"") -> 46%
B158: 2019-07-31 | D158: 146 | E158: 74.4 | F158: =IFERROR(RunningBMR,"") -> 1765 | G158: =IFERROR(IF(K157>0,F157*ActivityFactor+IF(WeightGoal="維持",0,IF(WeightGoal="減量",-500,IF(WeightGoal="増量",500))),""),"") -> 2857 | H158: =IFERROR(F158*(ActivityFactor),"") -> 3354 | I158: =IFERROR(IF(WeightGoal="増量",G158-H158,H158-G158),"") -> 496 | J158: 82035 | K158: =IFERROR(IF(Standard,J158/CalsPerPound,J158/CalsPerPound/2.2),"") -> 10.7 | L158: =IFERROR(WeightToLoseGain-K158,"") -> 9.35 | M158: =IFERROR(IF(B157<>"",L158/(WeightToLoseGain),""),"") -> 47%
B159: 2019-08-01 | D159: 147 | E159: 74.3 | F159: =IFERROR(RunningBMR,"") -> 1763 | G159: =IFERROR(IF(K158>0,F158*ActivityFactor+IF(WeightGoal="維持",0,IF(WeightGoal="減量",-500,IF(WeightGoal="増量",500))),""),"") -> 2854 | H159: =IFERROR(F159*(ActivityFactor),"") -> 3350 | I159: =IFERROR(IF(WeightGoal="増量",G159-H159,H159-G159),"") -> 496 | J159: 81539 | K159: =IFERROR(IF(Standard,J159/CalsPerPound,J159/CalsPerPound/2.2),"") -> 10.6 | L159: =IFERROR(WeightToLoseGain-K159,"") -> 9.41 | M159: =IFERROR(IF(B158<>"",L159/(WeightToLoseGain),""),"") -> 47%
B160: 2019-08-02 | C160: 22 | D160: 148 | E160: 74.2 | F160: =IFERROR(RunningBMR,"") -> 1761 | G160: =IFERROR(IF(K159>0,F159*ActivityFactor+IF(WeightGoal="維持",0,IF(WeightGoal="減量",-500,IF(WeightGoal="増量",500))),""),"") -> 2850 | H160: =IFERROR(F160*(ActivityFactor),"") -> 3346 | I160: =IFERROR(IF(WeightGoal="増量",G160-H160,H160-G160),"") -> 496 | J160: 81043 | K160: =IFERROR(IF(Standard,J160/CalsPerPound,J160/CalsPerPound/2.2),"") -> 10.5 | L160: =IFERROR(WeightToLoseGain-K160,"") -> 9.47 | M160: =IFERROR(IF(B159<>"",L160/(WeightToLoseGain),""),"") -> 47%
B161: 2019-08-03 | D161: 149 | E161: 74.0 | F161: =IFERROR(RunningBMR,"") -> 1759 | G161: =IFERROR(IF(K160>0,F160*ActivityFactor+IF(WeightGoal="維持",0,IF(WeightGoal="減量",-500,IF(WeightGoal="増量",500))),""),"") -> 2846 | H161: =IFERROR(F161*(ActivityFactor),"") -> 3343 | I161: =IFERROR(IF(WeightGoal="増量",G161-H161,H161-G161),"") -> 496 | J161: 80546 | K161: =IFERROR(IF(Standard,J161/CalsPerPound,J161/CalsPerPound/2.2),"") -> 10.5 | L161: =IFERROR(WeightToLoseGain-K161,"") -> 9.54 | M161: =IFERROR(IF(B160<>"",L161/(WeightToLoseGain),""),"") -> 48%
B162: 2019-08-04 | D162: 150 | E162: 73.9 | F162: =IFERROR(RunningBMR,"") -> 1757 | G162: =IFERROR(IF(K161>0,F161*ActivityFactor+IF(WeightGoal="維持",0,IF(WeightGoal="減量",-500,IF(WeightGoal="増量",500))),""),"") -> 2843 | H162: =IFERROR(F162*(ActivityFactor),"") -> 3339 | I162: =IFERROR(IF(WeightGoal="増量",G162-H162,H162-G162),"") -> 496 | J162: 80050 | K162: =IFERROR(IF(Standard,J162/CalsPerPound,J162/CalsPerPound/2.2),"") -> 10.4 | L162: =IFERROR(WeightToLoseGain-K162,"") -> 9.60 | M162: =IFERROR(IF(B161<>"",L162/(WeightToLoseGain),""),"") -> 48%
B163: 2019-08-05 | D163: 151 | E163: 73.7 | F163: =IFERROR(RunningBMR,"") -> 1755 | G163: =IFERROR(IF(K162>0,F162*ActivityFactor+IF(WeightGoal="維持",0,IF(WeightGoal="減量",-500,IF(WeightGoal="増量",500))),""),"") -> 2839 | H163: =IFERROR(F163*(ActivityFactor),"") -> 3335 | I163: =IFERROR(IF(WeightGoal="増量",G163-H163,H163-G163),"") -> 496 | J163: 79554 | K163: =IFERROR(IF(Standard,J163/CalsPerPound,J163/CalsPerPound/2.2),"") -> 10.3 | L163: =IFERROR(WeightToLoseGain-K163,"") -> 9.67 | M163: =IFERROR(IF(B162<>"",L163/(WeightToLoseGain),""),"") -> 48%
B164: 2019-08-06 | D164: 152 | E164: 73.6 | F164: =IFERROR(RunningBMR,"") -> 1753 | G164: =IFERROR(IF(K163>0,F163*ActivityFactor+IF(WeightGoal="維持",0,IF(WeightGoal="減量",-500,IF(WeightGoal="増量",500))),""),"") -> 2835 | H164: =IFERROR(F164*(ActivityFactor),"") -> 3332 | I164: =IFERROR(IF(WeightGoal="増量",G164-H164,H164-G164),"") -> 496 | J164: 79057 | K164: =IFERROR(IF(Standard,J164/CalsPerPound,J164/CalsPerPound/2.2),"") -> 10.3 | L164: =IFERROR(WeightToLoseGain-K164,"") -> 9.73 | M164: =IFERROR(IF(B163<>"",L164/(WeightToLoseGain),""),"") -> 49%
B165: 2019-08-07 | D165: 153 | E165: 73.4 | F165: =IFERROR(RunningBMR,"") -> 1752 | G165: =IFERROR(IF(K164>0,F164*ActivityFactor+IF(WeightGoal="維持",0,IF(WeightGoal="減量",-500,IF(WeightGoal="増量",500))),""),"") -> 2832 | H165: =IFERROR(F165*(ActivityFactor),"") -> 3328 | I165: =IFERROR(IF(WeightGoal="増量",G165-H165,H165-G165),"") -> 496 | J165: 78561 | K165: =IFERROR(IF(Standard,J165/CalsPerPound,J165/CalsPerPound/2.2),"") -> 10.2 | L165: =IFERROR(WeightToLoseGain-K165,"") -> 9.80 | M165: =IFERROR(IF(B164<>"",L165/(WeightToLoseGain),""),"") -> 49%
B166: 2019-08-08 | D166: 154 | E166: 73.3 | F166: =IFERROR(RunningBMR,"") -> 1750 | G166: =IFERROR(IF(K165>0,F165*ActivityFactor+IF(WeightGoal="維持",0,IF(WeightGoal="減量",-500,IF(WeightGoal="増量",500))),""),"") -> 2828 | H166: =IFERROR(F166*(ActivityFactor),"") -> 3324 | I166: =IFERROR(IF(WeightGoal="増量",G166-H166,H166-G166),"") -> 496 | J166: 78065 | K166: =IFERROR(IF(Standard,J166/CalsPerPound,J166/CalsPerPound/2.2),"") -> 10.1 | L166: =IFERROR(WeightToLoseGain-K166,"") -> 9.86 | M166: =IFERROR(IF(B165<>"",L166/(WeightToLoseGain),""),"") -> 49%
B167: 2019-08-09 | C167: 23 | D167: 155 | E167: 73.2 | F167: =IFERROR(RunningBMR,"") -> 1748 | G167: =IFERROR(IF(K166>0,F166*ActivityFactor+IF(WeightGoal="維持",0,IF(WeightGoal="減量",-500,IF(WeightGoal="増量",500))),""),"") -> 2824 | H167: =IFERROR(F167*(ActivityFactor),"") -> 3321 | I167: =IFERROR(IF(WeightGoal="増量",G167-H167,H167-G167),"") -> 496 | J167: 77568 | K167: =IFERROR(IF(Standard,J167/CalsPerPound,J167/CalsPerPound/2.2),"") -> 10.1 | L167: =IFERROR(WeightToLoseGain-K167,"") -> 9.93 | M167: =IFERROR(IF(B166<>"",L167/(WeightToLoseGain),""),"") -> 50%
B168: 2019-08-10 | D168: 156 | E168: 73.0 | F168: =IFERROR(RunningBMR,"") -> 1746 | G168: =IFERROR(IF(K167>0,F167*ActivityFactor+IF(WeightGoal="維持",0,IF(WeightGoal="減量",-500,IF(WeightGoal="増量",500))),""),"") -> 2821 | H168: =IFERROR(F168*(ActivityFactor),"") -> 3317 | I168: =IFERROR(IF(WeightGoal="増量",G168-H168,H168-G168),"") -> 496 | J168: 77072 | K168: =IFERROR(IF(Standard,J168/CalsPerPound,J168/CalsPerPound/2.2),"") -> 10.0 | L168: =IFERROR(WeightToLoseGain-K168,"") -> 9.99 | M168: =IFERROR(IF(B167<>"",L168/(WeightToLoseGain),""),"") -> 50%
B169: 2019-08-11 | D169: 157 | E169: 72.9 | F169: =IFERROR(RunningBMR,"") -> 1744 | G169: =IFERROR(IF(K168>0,F168*ActivityFactor+IF(WeightGoal="維持",0,IF(WeightGoal="減量",-500,IF(WeightGoal="増量",500))),""),"") -> 2817 | H169: =IFERROR(F169*(ActivityFactor),"") -> 3313 | I169: =IFERROR(IF(WeightGoal="増量",G169-H169,H169-G169),"") -> 496 | J169: 76576 | K169: =IFERROR(IF(Standard,J169/CalsPerPound,J169/CalsPerPound/2.2),"") -> 9.9 | L169: =IFERROR(WeightToLoseGain-K169,"") -> 10.06 | M169: =IFERROR(IF(B168<>"",L169/(WeightToLoseGain),""),"") -> 50%
B170: 2019-08-12 | D170: 158 | E170: 72.7 | F170: =IFERROR(RunningBMR,"") -> 1742 | G170: =IFERROR(IF(K169>0,F169*ActivityFactor+IF(WeightGoal="維持",0,IF(WeightGoal="減量",-500,IF(WeightGoal="増量",500))),""),"") -> 2813 | H170: =IFERROR(F170*(ActivityFactor),"") -> 3309 | I170: =IFERROR(IF(WeightGoal="増量",G170-H170,H170-G170),"") -> 496 | J170: 76080 | K170: =IFERROR(IF(Standard,J170/CalsPerPound,J170/CalsPerPound/2.2),"") -> 9.9 | L170: =IFERROR(WeightToLoseGain-K170,"") -> 10.12 | M170: =IFERROR(IF(B169<>"",L170/(WeightToLoseGain),""),"") -> 51%
B171: 2019-08-13 | D171: 159 | E171: 72.6 | F171: =IFERROR(RunningBMR,"") -> 1740 | G171: =IFERROR(IF(K170>0,F170*ActivityFactor+IF(WeightGoal="維持",0,IF(WeightGoal="減量",-500,IF(WeightGoal="増量",500))),""),"") -> 2809 | H171: =IFERROR(F171*(ActivityFactor),"") -> 3306 | I171: =IFERROR(IF(WeightGoal="増量",G171-H171,H171-G171),"") -> 496 | J171: 75583 | K171: =IFERROR(IF(Standard,J171/CalsPerPound,J171/CalsPerPound/2.2),"") -> 9.8 | L171: =IFERROR(WeightToLoseGain-K171,"") -> 10.18 | M171: =IFERROR(IF(B170<>"",L171/(WeightToLoseGain),""),"") -> 51%
B172: 2019-08-14 | D172: 160 | E172: 72.5 | F172: =IFERROR(RunningBMR,"") -> 1738 | G172: =IFERROR(IF(K171>0,F171*ActivityFactor+IF(WeightGoal="維持",0,IF(WeightGoal="減量",-500,IF(WeightGoal="増量",500))),""),"") -> 2806 | H172: =IFERROR(F172*(ActivityFactor),"") -> 3302 | I172: =IFERROR(IF(WeightGoal="増量",G172-H172,H172-G172),"") -> 496 | J172: 75087 | K172: =IFERROR(IF(Standard,J172/CalsPerPound,J172/CalsPerPound/2.2),"") -> 9.8 | L172: =IFERROR(WeightToLoseGain-K172,"") -> 10.25 | M172: =IFERROR(IF(B171<>"",L172/(WeightToLoseGain),""),"") -> 51%
B173: 2019-08-15 | D173: 161 | E173: 72.3 | F173: =IFERROR(RunningBMR,"") -> 1736 | G173: =IFERROR(IF(K172>0,F172*ActivityFactor+IF(WeightGoal="維持",0,IF(WeightGoal="減量",-500,IF(WeightGoal="増量",500))),""),"") -> 2802 | H173: =IFERROR(F173*(ActivityFactor),"") -> 3298 | I173: =IFERROR(IF(WeightGoal="増量",G173-H173,H173-G173),"") -> 496 | J173: 74591 | K173: =IFERROR(IF(Standard,J173/CalsPerPound,J173/CalsPerPound/2.2),"") -> 9.7 | L173: =IFERROR(WeightToLoseGain-K173,"") -> 10.31 | M173: =IFERROR(IF(B172<>"",L173/(WeightToLoseGain),""),"") -> 52%
B174: 2019-08-16 | C174: 24 | D174: 162 | E174: 72.2 | F174: =IFERROR(RunningBMR,"") -> 1734 | G174: =IFERROR(IF(K173>0,F173*ActivityFactor+IF(WeightGoal="維持",0,IF(WeightGoal="減量",-500,IF(WeightGoal="増量",500))),""),"") -> 2798 | H174: =IFERROR(F174*(ActivityFactor),"") -> 3295 | I174: =IFERROR(IF(WeightGoal="増量",G174-H174,H174-G174),"") -> 496 | J174: 74094 | K174: =IFERROR(IF(Standard,J174/CalsPerPound,J174/CalsPerPound/2.2),"") -> 9.6 | L174: =IFERROR(WeightToLoseGain-K174,"") -> 10.38 | M174: =IFERROR(IF(B173<>"",L174/(WeightToLoseGain),""),"") -> 52%
B175: 2019-08-17 | D175: 163 | E175: 72.0 | F175: =IFERROR(RunningBMR,"") -> 1732 | G175: =IFERROR(IF(K174>0,F174*ActivityFactor+IF(WeightGoal="維持",0,IF(WeightGoal="減量",-500,IF(WeightGoal="増量",500))),""),"") -> 2795 | H175: =IFERROR(F175*(ActivityFactor),"") -> 3291 | I175: =IFERROR(IF(WeightGoal="増量",G175-H175,H175-G175),"") -> 496 | J175: 73598 | K175: =IFERROR(IF(Standard,J175/CalsPerPound,J175/CalsPerPound/2.2),"") -> 9.6 | L175: =IFERROR(WeightToLoseGain-K175,"") -> 10.44 | M175: =IFERROR(IF(B174<>"",L175/(WeightToLoseGain),""),"") -> 52%
B176: 2019-08-18 | D176: 164 | E176: 71.9 | F176: =IFERROR(RunningBMR,"") -> 1730 | G176: =IFERROR(IF(K175>0,F175*ActivityFactor+IF(WeightGoal="維持",0,IF(WeightGoal="減量",-500,IF(WeightGoal="増量",500))),""),"") -> 2791 | H176: =IFERROR(F176*(ActivityFactor),"") -> 3287 | I176: =IFERROR(IF(WeightGoal="増量",G176-H176,H176-G176),"") -> 496 | J176: 73102 | K176: =IFERROR(IF(Standard,J176/CalsPerPound,J176/CalsPerPound/2.2),"") -> 9.5 | L176: =IFERROR(WeightToLoseGain-K176,"") -> 10.51 | M176: =IFERROR(IF(B175<>"",L176/(WeightToLoseGain),""),"") -> 53%
B177: 2019-08-19 | D177: 165 | E177: 71.7 | F177: =IFERROR(RunningBMR,"") -> 1728 | G177: =IFERROR(IF(K176>0,F176*ActivityFactor+IF(WeightGoal="維持",0,IF(WeightGoal="減量",-500,IF(WeightGoal="増量",500))),""),"") -> 2787 | H177: =IFERROR(F177*(ActivityFactor),"") -> 3284 | I177: =IFERROR(IF(WeightGoal="増量",G177-H177,H177-G177),"") -> 496 | J177: 72605 | K177: =IFERROR(IF(Standard,J177/CalsPerPound,J177/CalsPerPound/2.2),"") -> 9.4 | L177: =IFERROR(WeightToLoseGain-K177,"") -> 10.57 | M177: =IFERROR(IF(B176<>"",L177/(WeightToLoseGain),""),"") -> 53%
B178: 2019-08-20 | D178: 166 | E178: 71.6 | F178: =IFERROR(RunningBMR,"") -> 1726 | G178: =IFERROR(IF(K177>0,F177*ActivityFactor+IF(WeightGoal="維持",0,IF(WeightGoal="減量",-500,IF(WeightGoal="増量",500))),""),"") -> 2784 | H178: =IFERROR(F178*(ActivityFactor),"") -> 3280 | I178: =IFERROR(IF(WeightGoal="増量",G178-H178,H178-G178),"") -> 496 | J178: 72109 | K178: =IFERROR(IF(Standard,J178/CalsPerPound,J178/CalsPerPound/2.2),"") -> 9.4 | L178: =IFERROR(WeightToLoseGain-K178,"") -> 10.64 | M178: =IFERROR(IF(B177<>"",L178/(WeightToLoseGain),""),"") -> 53%
B179: 2019-08-21 | D179: 167 | E179: 71.5 | F179: =IFERROR(RunningBMR,"") -> 1724 | G179: =IFERROR(IF(K178>0,F178*ActivityFactor+IF(WeightGoal="維持",0,IF(WeightGoal="減量",-500,IF(WeightGoal="増量",500))),""),"") -> 2780 | H179: =IFERROR(F179*(ActivityFactor),"") -> 3276 | I179: =IFERROR(IF(WeightGoal="増量",G179-H179,H179-G179),"") -> 496 | J179: 71613 | K179: =IFERROR(IF(Standard,J179/CalsPerPound,J179/CalsPerPound/2.2),"") -> 9.3 | L179: =IFERROR(WeightToLoseGain-K179,"") -> 10.70 | M179: =IFERROR(IF(B178<>"",L179/(WeightToLoseGain),""),"") -> 53%
B180: 2019-08-22 | D180: 168 | E180: 71.3 | F180: =IFERROR(RunningBMR,"") -> 1722 | G180: =IFERROR(IF(K179>0,F179*ActivityFactor+IF(WeightGoal="維持",0,IF(WeightGoal="減量",-500,IF(WeightGoal="増量",500))),""),"") -> 2776 | H180: =IFERROR(F180*(ActivityFactor),"") -> 3273 | I180: =IFERROR(IF(WeightGoal="増量",G180-H180,H180-G180),"") -> 496 | J180: 71116 | K180: =IFERROR(IF(Standard,J180/CalsPerPound,J180/CalsPerPound/2.2),"") -> 9.2 | L180: =IFERROR(WeightToLoseGain-K180,"") -> 10.76 | M180: =IFERROR(IF(B179<>"",L180/(WeightToLoseGain),""),"") -> 54%
B181: 2019-08-23 | C181: 25 | D181: 169 | E181: 71.2 | F181: =IFERROR(RunningBMR,"") -> 1720 | G181: =IFERROR(IF(K180>0,F180*ActivityFactor+IF(WeightGoal="維持",0,IF(WeightGoal="減量",-500,IF(WeightGoal="増量",500))),""),"") -> 2773 | H181: =IFERROR(F181*(ActivityFactor),"") -> 3269 | I181: =IFERROR(IF(WeightGoal="増量",G181-H181,H181-G181),"") -> 496 | J181: 70620 | K181: =IFERROR(IF(Standard,J181/CalsPerPound,J181/CalsPerPound/2.2),"") -> 9.2 | L181: =IFERROR(WeightToLoseGain-K181,"") -> 10.83 | M181: =IFERROR(IF(B180<>"",L181/(WeightToLoseGain),""),"") -> 54%
B182: 2019-08-24 | D182: 170 | E182: 71.0 | F182: =IFERROR(RunningBMR,"") -> 1719 | G182: =IFERROR(IF(K181>0,F181*ActivityFactor+IF(WeightGoal="維持",0,IF(WeightGoal="減量",-500,IF(WeightGoal="増量",500))),""),"") -> 2769 | H182: =IFERROR(F182*(ActivityFactor),"") -> 3265 | I182: =IFERROR(IF(WeightGoal="増量",G182-H182,H182-G182),"") -> 496 | J182: 70124 | K182: =IFERROR(IF(Standard,J182/CalsPerPound,J182/CalsPerPound/2.2),"") -> 9.1 | L182: =IFERROR(WeightToLoseGain-K182,"") -> 10.89 | M182: =IFERROR(IF(B181<>"",L182/(WeightToLoseGain),""),"") -> 54%
B183: 2019-08-25 | D183: 171 | E183: 70.9 | F183: =IFERROR(RunningBMR,"") -> 1717 | G183: =IFERROR(IF(K182>0,F182*ActivityFactor+IF(WeightGoal="維持",0,IF(WeightGoal="減量",-500,IF(WeightGoal="増量",500))),""),"") -> 2765 | H183: =IFERROR(F183*(ActivityFactor),"") -> 3261 | I183: =IFERROR(IF(WeightGoal="増量",G183-H183,H183-G183),"") -> 496 | J183: 69628 | K183: =IFERROR(IF(Standard,J183/CalsPerPound,J183/CalsPerPound/2.2),"") -> 9.0 | L183: =IFERROR(WeightToLoseGain-K183,"") -> 10.96 | M183: =IFERROR(IF(B182<>"",L183/(WeightToLoseGain),""),"") -> 55%
B184: 2019-08-26 | D184: 172 | E184: 70.8 | F184: =IFERROR(RunningBMR,"") -> 1715 | G184: =IFERROR(IF(K183>0,F183*ActivityFactor+IF(WeightGoal="維持",0,IF(WeightGoal="減量",-500,IF(WeightGoal="増量",500))),""),"") -> 2761 | H184: =IFERROR(F184*(ActivityFactor),"") -> 3258 | I184: =IFERROR(IF(WeightGoal="増量",G184-H184,H184-G184),"") -> 496 | J184: 69131 | K184: =IFERROR(IF(Standard,J184/CalsPerPound,J184/CalsPerPound/2.2),"") -> 9.0 | L184: =IFERROR(WeightToLoseGain-K184,"") -> 11.02 | M184: =IFERROR(IF(B183<>"",L184/(WeightToLoseGain),""),"") -> 55%
B185: 2019-08-27 | D185: 173 | E185: 70.6 | F185: =IFERROR(RunningBMR,"") -> 1713 | G185: =IFERROR(IF(K184>0,F184*ActivityFactor+IF(WeightGoal="維持",0,IF(WeightGoal="減量",-500,IF(WeightGoal="増量",500))),""),"") -> 2758 | H185: =IFERROR(F185*(ActivityFactor),"") -> 3254 | I185: =IFERROR(IF(WeightGoal="増量",G185-H185,H185-G185),"") -> 496 | J185: 68635 | K185: =IFERROR(IF(Standard,J185/CalsPerPound,J185/CalsPerPound/2.2),"") -> 8.9 | L185: =IFERROR(WeightToLoseGain-K185,"") -> 11.09 | M185: =IFERROR(IF(B184<>"",L185/(WeightToLoseGain),""),"") -> 55%
B186: 2019-08-28 | D186: 174 | E186: 70.5 | F186: =IFERROR(RunningBMR,"") -> 1711 | G186: =IFERROR(IF(K185>0,F185*ActivityFactor+IF(WeightGoal="維持",0,IF(WeightGoal="減量",-500,IF(WeightGoal="増量",500))),""),"") -> 2754 | H186: =IFERROR(F186*(ActivityFactor),"") -> 3250 | I186: =IFERROR(IF(WeightGoal="増量",G186-H186,H186-G186),"") -> 496 | J186: 68139 | K186: =IFERROR(IF(Standard,J186/CalsPerPound,J186/CalsPerPound/2.2),"") -> 8.8 | L186: =IFERROR(WeightToLoseGain-K186,"") -> 11.15 | M186: =IFERROR(IF(B185<>"",L186/(WeightToLoseGain),""),"") -> 56%
B187: 2019-08-29 | D187: 175 | E187: 70.3 | F187: =IFERROR(RunningBMR,"") -> 1709 | G187: =IFERROR(IF(K186>0,F186*ActivityFactor+IF(WeightGoal="維持",0,IF(WeightGoal="減量",-500,IF(WeightGoal="増量",500))),""),"") -> 2750 | H187: =IFERROR(F187*(ActivityFactor),"") -> 3247 | I187: =IFERROR(IF(WeightGoal="増量",G187-H187,H187-G187),"") -> 496 | J187: 67642 | K187: =IFERROR(IF(Standard,J187/CalsPerPound,J187/CalsPerPound/2.2),"") -> 8.8 | L187: =IFERROR(WeightToLoseGain-K187,"") -> 11.22 | M187: =IFERROR(IF(B186<>"",L187/(WeightToLoseGain),""),"") -> 56%
B188: 2019-08-30 | C188: 26 | D188: 176 | E188: 70.2 | F188: =IFERROR(RunningBMR,"") -> 1707 | G188: =IFERROR(IF(K187>0,F187*ActivityFactor+IF(WeightGoal="維持",0,IF(WeightGoal="減量",-500,IF(WeightGoal="増量",500))),""),"") -> 2747 | H188: =IFERROR(F188*(ActivityFactor),"") -> 3243 | I188: =IFERROR(IF(WeightGoal="増量",G188-H188,H188-G188),"") -> 496 | J188: 67146 | K188: =IFERROR(IF(Standard,J188/CalsPerPound,J188/CalsPerPound/2.2),"") -> 8.7 | L188: =IFERROR(WeightToLoseGain-K188,"") -> 11.28 | M188: =IFERROR(IF(B187<>"",L188/(WeightToLoseGain),""),"") -> 56%
B189: 2019-08-31 | D189: 177 | E189: 70.0 | F189: =IFERROR(RunningBMR,"") -> 1705 | G189: =IFERROR(IF(K188>0,F188*ActivityFactor+IF(WeightGoal="維持",0,IF(WeightGoal="減量",-500,IF(WeightGoal="増量",500))),""),"") -> 2743 | H189: =IFERROR(F189*(ActivityFactor),"") -> 3239 | I189: =IFERROR(IF(WeightGoal="増量",G189-H189,H189-G189),"") -> 496 | J189: 66650 | K189: =IFERROR(IF(Standard,J189/CalsPerPound,J189/CalsPerPound/2.2),"") -> 8.7 | L189: =IFERROR(WeightToLoseGain-K189,"") -> 11.34 | M189: =IFERROR(IF(B188<>"",L189/(WeightToLoseGain),""),"") -> 57%
B190: 2019-09-01 | D190: 178 | E190: 69.9 | F190: =IFERROR(RunningBMR,"") -> 1703 | G190: =IFERROR(IF(K189>0,F189*ActivityFactor+IF(WeightGoal="維持",0,IF(WeightGoal="減量",-500,IF(WeightGoal="増量",500))),""),"") -> 2739 | H190: =IFERROR(F190*(ActivityFactor),"") -> 3236 | I190: =IFERROR(IF(WeightGoal="増量",G190-H190,H190-G190),"") -> 496 | J190: 66153 | K190: =IFERROR(IF(Standard,J190/CalsPerPound,J190/CalsPerPound/2.2),"") -> 8.6 | L190: =IFERROR(WeightToLoseGain-K190,"") -> 11.41 | M190: =IFERROR(IF(B189<>"",L190/(WeightToLoseGain),""),"") -> 57%
B191: 2019-09-02 | D191: 179 | E191: 69.8 | F191: =IFERROR(RunningBMR,"") -> 1701 | G191: =IFERROR(IF(K190>0,F190*ActivityFactor+IF(WeightGoal="維持",0,IF(WeightGoal="減量",-500,IF(WeightGoal="増量",500))),""),"") -> 2736 | H191: =IFERROR(F191*(ActivityFactor),"") -> 3232 | I191: =IFERROR(IF(WeightGoal="増量",G191-H191,H191-G191),"") -> 496 | J191: 65657 | K191: =IFERROR(IF(Standard,J191/CalsPerPound,J191/CalsPerPound/2.2),"") -> 8.5 | L191: =IFERROR(WeightToLoseGain-K191,"") -> 11.47 | M191: =IFERROR(IF(B190<>"",L191/(WeightToLoseGain),""),"") -> 57%
B192: 2019-09-03 | D192: 180 | E192: 69.6 | F192: =IFERROR(RunningBMR,"") -> 1699 | G192: =IFERROR(IF(K191>0,F191*ActivityFactor+IF(WeightGoal="維持",0,IF(WeightGoal="減量",-500,IF(WeightGoal="増量",500))),""),"") -> 2732 | H192: =IFERROR(F192*(ActivityFactor),"") -> 3228 | I192: =IFERROR(IF(WeightGoal="増量",G192-H192,H192-G192),"") -> 496 | J192: 65161 | K192: =IFERROR(IF(Standard,J192/CalsPerPound,J192/CalsPerPound/2.2),"") -> 8.5 | L192: =IFERROR(WeightToLoseGain-K192,"") -> 11.54 | M192: =IFERROR(IF(B191<>"",L192/(WeightToLoseGain),""),"") -> 58%
B193: 2019-09-04 | D193: 181 | E193: 69.5 | F193: =IFERROR(RunningBMR,"") -> 1697 | G193: =IFERROR(IF(K192>0,F192*ActivityFactor+IF(WeightGoal="維持",0,IF(WeightGoal="減量",-500,IF(WeightGoal="増量",500))),""),"") -> 2728 | H193: =IFERROR(F193*(ActivityFactor),"") -> 3225 | I193: =IFERROR(IF(WeightGoal="増量",G193-H193,H193-G193),"") -> 496 | J193: 64664 | K193: =IFERROR(IF(Standard,J193/CalsPerPound,J193/CalsPerPound/2.2),"") -> 8.4 | L193: =IFERROR(WeightToLoseGain-K193,"") -> 11.60 | M193: =IFERROR(IF(B192<>"",L193/(WeightToLoseGain),""),"") -> 58%
B194: 2019-09-05 | D194: 182 | E194: 69.3 | F194: =IFERROR(RunningBMR,"") -> 1695 | G194: =IFERROR(IF(K193>0,F193*ActivityFactor+IF(WeightGoal="維持",0,IF(WeightGoal="減量",-500,IF(WeightGoal="増量",500))),""),"") -> 2725 | H194: =IFERROR(F194*(ActivityFactor),"") -> 3221 | I194: =IFERROR(IF(WeightGoal="増量",G194-H194,H194-G194),"") -> 496 | J194: 64168 | K194: =IFERROR(IF(Standard,J194/CalsPerPound,J194/CalsPerPound/2.2),"") -> 8.3 | L194: =IFERROR(WeightToLoseGain-K194,"") -> 11.67 | M194: =IFERROR(IF(B193<>"",L194/(WeightToLoseGain),""),"") -> 58%
B195: 2019-09-06 | C195: 27 | D195: 183 | E195: 69.2 | F195: =IFERROR(RunningBMR,"") -> 1693 | G195: =IFERROR(IF(K194>0,F194*ActivityFactor+IF(WeightGoal="維持",0,IF(WeightGoal="減量",-500,IF(WeightGoal="増量",500))),""),"") -> 2721 | H195: =IFERROR(F195*(ActivityFactor),"") -> 3217 | I195: =IFERROR(IF(WeightGoal="増量",G195-H195,H195-G195),"") -> 496 | J195: 63672 | K195: =IFERROR(IF(Standard,J195/CalsPerPound,J195/CalsPerPound/2.2),"") -> 8.3 | L195: =IFERROR(WeightToLoseGain-K195,"") -> 11.73 | M195: =IFERROR(IF(B194<>"",L195/(WeightToLoseGain),""),"") -> 59%
B196: 2019-09-07 | D196: 184 | E196: 69.0 | F196: =IFERROR(RunningBMR,"") -> 1691 | G196: =IFERROR(IF(K195>0,F195*ActivityFactor+IF(WeightGoal="維持",0,IF(WeightGoal="減量",-500,IF(WeightGoal="増量",500))),""),"") -> 2717 | H196: =IFERROR(F196*(ActivityFactor),"") -> 3214 | I196: =IFERROR(IF(WeightGoal="増量",G196-H196,H196-G196),"") -> 496 | J196: 63176 | K196: =IFERROR(IF(Standard,J196/CalsPerPound,J196/CalsPerPound/2.2),"") -> 8.2 | L196: =IFERROR(WeightToLoseGain-K196,"") -> 11.80 | M196: =IFERROR(IF(B195<>"",L196/(WeightToLoseGain),""),"") -> 59%
B197: 2019-09-08 | D197: 185 | E197: 68.9 | F197: =IFERROR(RunningBMR,"") -> 1689 | G197: =IFERROR(IF(K196>0,F196*ActivityFactor+IF(WeightGoal="維持",0,IF(WeightGoal="減量",-500,IF(WeightGoal="増量",500))),""),"") -> 2714 | H197: =IFERROR(F197*(ActivityFactor),"") -> 3210 | I197: =IFERROR(IF(WeightGoal="増量",G197-H197,H197-G197),"") -> 496 | J197: 62679 | K197: =IFERROR(IF(Standard,J197/CalsPerPound,J197/CalsPerPound/2.2),"") -> 8.1 | L197: =IFERROR(WeightToLoseGain-K197,"") -> 11.86 | M197: =IFERROR(IF(B196<>"",L197/(WeightToLoseGain),""),"") -> 59%
B198: 2019-09-09 | D198: 186 | E198: 68.8 | F198: =IFERROR(RunningBMR,"") -> 1687 | G198: =IFERROR(IF(K197>0,F197*ActivityFactor+IF(WeightGoal="維持",0,IF(WeightGoal="減量",-500,IF(WeightGoal="増量",500))),""),"") -> 2710 | H198: =IFERROR(F198*(ActivityFactor),"") -> 3206 | I198: =IFERROR(IF(WeightGoal="増量",G198-H198,H198-G198),"") -> 496 | J198: 62183 | K198: =IFERROR(IF(Standard,J198/CalsPerPound,J198/CalsPerPound/2.2),"") -> 8.1 | L198: =IFERROR(WeightToLoseGain-K198,"") -> 11.92 | M198: =IFERROR(IF(B197<>"",L198/(WeightToLoseGain),""),"") -> 60%
B199: 2019-09-10 | D199: 187 | E199: 68.6 | F199: =IFERROR(RunningBMR,"") -> 1685 | G199: =IFERROR(IF(K198>0,F198*ActivityFactor+IF(WeightGoal="維持",0,IF(WeightGoal="減量",-500,IF(WeightGoal="増量",500))),""),"") -> 2706 | H199: =IFERROR(F199*(ActivityFactor),"") -> 3202 | I199: =IFERROR(IF(WeightGoal="増量",G199-H199,H199-G199),"") -> 496 | J199: 61687 | K199: =IFERROR(IF(Standard,J199/CalsPerPound,J199/CalsPerPound/2.2),"") -> 8.0 | L199: =IFERROR(WeightToLoseGain-K199,"") -> 11.99 | M199: =IFERROR(IF(B198<>"",L199/(WeightToLoseGain),""),"") -> 60%
B200: 2019-09-11 | D200: 188 | E200: 68.5 | F200: =IFERROR(RunningBMR,"") -> 1684 | G200: =IFERROR(IF(K199>0,F199*ActivityFactor+IF(WeightGoal="維持",0,IF(WeightGoal="減量",-500,IF(WeightGoal="増量",500))),""),"") -> 2702 | H200: =IFERROR(F200*(ActivityFactor),"") -> 3199 | I200: =IFERROR(IF(WeightGoal="増量",G200-H200,H200-G200),"") -> 496 | J200: 61190 | K200: =IFERROR(IF(Standard,J200/CalsPerPound,J200/CalsPerPound/2.2),"") -> 7.9 | L200: =IFERROR(WeightToLoseGain-K200,"") -> 12.05 | M200: =IFERROR(IF(B199<>"",L200/(WeightToLoseGain),""),"") -> 60%
B201: 2019-09-12 | D201: 189 | E201: 68.3 | F201: =IFERROR(RunningBMR,"") -> 1682 | G201: =IFERROR(IF(K200>0,F200*ActivityFactor+IF(WeightGoal="維持",0,IF(WeightGoal="減量",-500,IF(WeightGoal="増量",500))),""),"") -> 2699 | H201: =IFERROR(F201*(ActivityFactor),"") -> 3195 | I201: =IFERROR(IF(WeightGoal="増量",G201-H201,H201-G201),"") -> 496 | J201: 60694 | K201: =IFERROR(IF(Standard,J201/CalsPerPound,J201/CalsPerPound/2.2),"") -> 7.9 | L201: =IFERROR(WeightToLoseGain-K201,"") -> 12.12 | M201: =IFERROR(IF(B200<>"",L201/(WeightToLoseGain),""),"") -> 61%
B202: 2019-09-13 | C202: 28 | D202: 190 | E202: 68.2 | F202: =IFERROR(RunningBMR,"") -> 1680 | G202: =IFERROR(IF(K201>0,F201*ActivityFactor+IF(WeightGoal="維持",0,IF(WeightGoal="減量",-500,IF(WeightGoal="増量",500))),""),"") -> 2695 | H202: =IFERROR(F202*(ActivityFactor),"") -> 3191 | I202: =IFERROR(IF(WeightGoal="増量",G202-H202,H202-G202),"") -> 496 | J202: 60198 | K202: =IFERROR(IF(Standard,J202/CalsPerPound,J202/CalsPerPound/2.2),"") -> 7.8 | L202: =IFERROR(WeightToLoseGain-K202,"") -> 12.18 | M202: =IFERROR(IF(B201<>"",L202/(WeightToLoseGain),""),"") -> 61%
... 798 more rows

Sheet 運動の種類のルックアップ (hidden)
B1: 運動の種類のルックアップ
B2: このシートは非表示のままにする必要があります。
B3: 運動の種類 | C3: 説明 | D3: 要因
B4: デスクワーク | C4: ほとんど/まったく運動しない | D4: 1.2
B5: 軽度の活動 | C5: 週 1 から 2 日運動する | D5: 1.375
B6: 中程度の活動 | C6: 週 3 から 5 日運動する | D6: 1.55
B7: かなり活動的 | C7: 週 6 から 7 日運動する | D7: 1.725
B8: 非常に活動的 | C8: 週 6 から 7 日運動 + 肉体労働/ 2 倍のトレーニング | D8: 1.9
